Workbook

Sheet Data
A1: This Excel sheet was created on May 19, 2021
C2: Generate plots and statistics from raw data INCLUDING offset relative to first release.
B4: Date of Release: | D4: 2021-05-12
B7: Voltage Calibration Curve: | E7: m | F7: 0.56072 | I7: % CH4 in Initial Release | L7: 3 | M7: %
E9: b | F9: -0.00502 | I9: % N2O Equivalent in Initial Release | L9: 49 | M9: %
B12: Trial: | D12: 4
F13: Average Voltage (V) | G13: % CH4 | J13: Important Note: Releases after 30 were generated via the Bootstrap method with replacement.
B14: Jaz Location: | D14: J91c | F14: 0.0008866373698 | G14: 0
F15: 1.93879069 | G15: 1 | CG15: =AMG26*F7+F9 -> -0.00502 | AEI15: all cell in column 301 and beyond do not have lock function applied.
F16: 2.634981283 | G16: 1.5
B17: What is being modeled: | D17: N2O | F17: 3.412300212 | G17: 2
F18: 5.433476969 | G18: 3
C24: Voltage
A25: Relative Time (s) | B25: Full Scale Time (min) | C25: Release 1 (V) | D25: Release 2 (V) | E25: Release 3 (V) | F25: Release 4 (V) | G25: Release 5 (V) | H25: Release 6 (V) | I25: Release 7 (V) | J25: Release 8 (V) | K25: Release 9 (V) | L25: Release 10 (V) | M25: Release 11 (V) | N25: Release 12 (V) | O25: Release 13 (V) | P25: Release 14 (V) | Q25: Release 15 (V) | R25: Release 16 (V) | S25: Release 17 (V) | T25: Release 18 (V) | U25: Release 19 (V) | V25: Release 20 (V) | W25: Release 21 (V) | X25: Release 22 (V) | Y25: Release 23 (V) | Z25: Release 24 (V) | AA25: Release 25 (V) | AB25: Release 26 (V) | AC25: Release 27 (V) | AD25: Release 28 (V) | AE25: Release 29 (V) | AF25: Release 30 (V) | AG25: Release 31 (V) | AH25: Release 32 (V) | AI25: Release 33 (V) | AJ25: Release 34 (V) | AK25: Release 35 (V) | AL25: Release 36 (V) | AM25: Release 37 (V) | AN25: Release 38 (V) | AO25: Release 39 | AP25: Release 40 | AQ25: Release 41 | AR25: Release 42 | AS25: Release 43 | AT25: Release 44 | AU25: Release 45 | AV25: Release 46 | AW25: Release 47 | AX25: Release 48 | AY25: Release 49 | AZ25: Release 50 | BA25: Release 51 | BB25: Release 52 | BC25: Release 53 | BD25: Release 54 | BE25: Release 55 | BF25: Release 56 | BG25: Release 57 | BH25: Release 58 | BI25: Release 59 | BJ25: Release 60 | BK25: Release 61 | BL25: Release 62 | BM25: Release 63 | BN25: Release 64 | BO25: Release 65 | BP25: Release 66 | BQ25: Release 67 | BR25: Release 68 | BS25: Release 69 | BT25: Release 70 | BU25: Release 71 | BV25: Release 72 | BW25: Release 73 | BX25: Release 74 | BY25: Release 75 | BZ25: Release 76 | CA25: Release 77 | CB25: Release 78 | CC25: Release 79 | CD25: Release 80 | CE25: Release 81 | CF25: Release 82 | CG25: Release 83 | CH25: Release 84 | CI25: Release 85 | CJ25: Release 86 | CK25: Release 87 | CL25: Release 88 | CM25: Release 89 | CN25: Release 90 | CO25: Release 91 | CP25: Release 92 | CQ25: Release 93 | CR25: Release 94 | CS25: Release 95 | CT25: Release 96 | CU25: Release 97 | CV25: Release 98 | CW25: Release 99 | CX25: Release 100 | CY25: Release 101 | CZ25: Release 102 | DA25: Release 103 | DB25: Release 104 | DC25: Release 105 | DD25: Release 106 | DE25: Release 107 | DF25: Release 108 | DG25: Release 109 | DH25: Release 110 | DI25: Release 111 | DJ25: Release 112 | DK25: Release 113 | DL25: Release 114 | DM25: Release 115 | DN25: Release 116 | DO25: Release 117 | DP25: Release 118 | DQ25: Release 119 | DR25: Release 120 | DS25: Release 121 | DT25: Release 122 | DU25: Release 123 | DV25: Release 124 | DW25: Release 125 | DX25: Release 126 | DY25: Release 127 | DZ25: Release 128 | EA25: Release 129 | EB25: Release 130 | EC25: Release 131 | ED25: Release 132 | EE25: Release 133 | EF25: Release 134 | EG25: Release 135 | EH25: Release 136 | EI25: Release 137 | EJ25: Release 138 | EK25: Release 139 | EL25: Release 140 | EM25: Release 141 | EN25: Release 142 | EO25: Release 143 | EP25: Release 144 | EQ25: Release 145 | ER25: Release 146 | ES25: Release 147 | ET25: Release 148 | EU25: Release 149 | EV25: Release 150 | EW25: Release 151 | EX25: Release 152 | EY25: Release 153 | EZ25: Release 154 | FA25: Release 155 | FB25: Release 156 | FC25: Release 157 | FD25: Release 158 | FE25: Release 159 | FF25: Release 160 | FG25: Release 161 | FH25: Release 162 | FI25: Release 163 | FJ25: Release 164 | FK25: Release 165 | FL25: Release 166 | FM25: Release 167 | FN25: Release 168 | FO25: Release 169 | FP25: Release 170 | FQ25: Release 171 | FR25: Release 172 | FS25: Release 173 | FT25: Release 174 | FU25: Release 175 | FV25: Release 176 | FW25: Release 177 | FX25: Release 178 | FY25: Release 179 | FZ25: Release 180 | GA25: Release 181 | GB25: Release 182 | GC25: Release 183 | GD25: Release 184 | GE25: Release 185 | GF25: Release 186 | GG25: Release 187 | GH25: Release 188 | GI25: Release 189 | GJ25: Release 190 | GK25: Release 191 | GL25: Release 192 | GM25: Release 193 | GN25: Release 194 | GO25: Release 195 | GP25: Release 196 | GQ25: Release 197 | GR25: Release 198 | GS25: Release 199 | GT25: Release 200 | GU25: Release 201 | GV25: Release 202 | GW25: Release 203 | GX25: Release 204 | GY25: Release 205 | GZ25: Release 206 | HA25: Release 207 | HB25: Release 208 | HC25: Release 209 | HD25: Release 210 | HE25: Release 211 | HF25: Release 212 | HG25: Release 213 | HH25: Release 214 | HI25: Release 215 | HJ25: Release 216 | HK25: Release 217 | HL25: Release 218 | HM25: Release 219 | HN25: Release 220 | HO25: Release 221 | HP25: Release 222 | HQ25: Release 223 | HR25: Release 224 | HS25: Release 225 | HT25: Release 226 | HU25: Release 227 | HV25: Release 228 | HW25: Release 229 | HX25: Release 230 | HY25: Release 231 | HZ25: Release 232 | IA25: Release 233 | IB25: Release 234 | IC25: Release 235 | ID25: Release 236 | IE25: Release 237 | IF25: Release 238 | IG25: Release 239 | IH25: Release 240 | II25: Release 241 | IJ25: Release 242 | IK25: Release 243 | IL25: Release 244 | IM25: Release 245 | IN25: Release 246 | IO25: Release 247 | IP25: Release 248 | IQ25: Release 249 | IR25: Release 250 | IS25: Release 251 | IT25: Release 252 | IU25: Release 253 | IV25: Release 254 | IW25: Release 255 | IX25: Release 256 | IY25: Release 257 | IZ25: Release 258 | JA25: Release 259 | JB25: Release 260 | JC25: Release 261 | JD25: Release 262 | JE25: Release 263 | JF25: Release 264 | JG25: Release 265 | JH25: Release 266 | JI25: Release 267 | JJ25: Release 268 | JK25: Release 269 | JL25: Release 270 | JM25: Release 271 | JN25: Release 272 | JO25: Release 273 | JP25: Release 274 | JQ25: Release 275 | JR25: Release 276 | JS25: Release 277 | JT25: Release 278 | JU25: Release 279 | JV25: Release 280 | JW25: Release 281 | JX25: Release 282 | JY25: Release 283 | JZ25: Release 284 | KA25: Release 285 | KB25: Release 286 | KC25: Release 287 | KD25: Release 288 | KE25: Release 289 | KF25: Release 290 | KG25: Release 291 | KH25: Release 292 | KI25: Release 293 | KJ25: Release 294 | KK25: Release 295 | KL25: Release 296 | KM25: Release 297 | KN25: Release 298 | KO25: Release 299 | KP25: Release 300 | KQ25: Release 301 | KR25: Release 302 | KS25: Release 303 | KT25: Release 304 | KU25: Release 305 | KV25: Release 306 | KW25: Release 307 | KX25: Release 308 | KY25: Release 309 | KZ25: Release 310 | LA25: Release 311 | LB25: Release 312 | LC25: Release 313 | LD25: Release 314 | LE25: Release 315 | LF25: Release 316 | LG25: Release 317 | LH25: Release 318 | LI25: Release 319 | LJ25: Release 320 | LK25: Release 321 | LL25: Release 322 | LM25: Release 323 | LN25: Release 324 | LO25: Release 325 | LP25: Release 326 | LQ25: Release 327 | LR25: Release 328 | LS25: Release 329 | LT25: Release 330 | LU25: Release 331 | LV25: Release 332 | LW25: Release 333 | LX25: Release 334 | LY25: Release 335 | LZ25: Release 336 | MA25: Release 337 | MB25: Release 338 | MC25: Release 339 | MD25: Release 340 | ME25: Release 341 | MF25: Release 342 | MG25: Release 343 | MH25: Release 344 | MI25: Release 345 | MJ25: Release 346 | MK25: Release 347 | ML25: Release 348 | MM25: Release 349 | MN25: Release 350 | MO25: Release 351 | MP25: Release 352 | MQ25: Release 353 | MR25: Release 354 | MS25: Release 355 | MT25: Release 356 | MU25: Release 357 | MV25: Release 358 | MW25: Release 359 | MX25: Release 360 | MY25: Release 361 | MZ25: Release 362 | NA25: Release 363 | NB25: Release 364 | NC25: Release 365 | ND25: Release 366 | NE25: Release 367 | NF25: Release 368 | NG25: Release 369 | NH25: Release 370 | NI25: Release 371 | NJ25: Release 372 | NK25: Release 373 | NL25: Release 374 | NM25: Release 375 | NN25: Release 376 | NO25: Release 377 | NP25: Release 378 | NQ25: Release 379 | NR25: Release 380 | NS25: Release 381 | NT25: Release 382 | NU25: Release 383 | NV25: Release 384 | NW25: Release 385 | NX25: Release 386 | NY25: Release 387 | NZ25: Release 388 | OA25: Release 389 | OB25: Release 390 | OC25: Release 391 | OD25: Release 392 | OE25: Release 393 | OF25: Release 394 | OG25: Release 395 | OH25: Release 396 | OI25: Release 397 | OJ25: Release 398 | OK25: Release 399 | OL25: Release 400 | OM25: Release 401 | ON25: Release 402 | OO25: Release 403 | OP25: Release 404 | OQ25: Release 405 | OR25: Release 406 | OS25: Release 407 | OT25: Release 408 | OU25: Release 409 | OV25: Release 410 | OW25: Release 411 | OX25: Release 412 | OY25: Release 413 | OZ25: Release 414 | PA25: Release 415 | PB25: Release 416 | PC25: Release 417 | PD25: Release 418 | PE25: Release 419 | PF25: Release 420 | PG25: Release 421 | PH25: Release 422 | PI25: Release 423 | PJ25: Release 424 | PK25: Release 425 | PL25: Release 426 | PM25: Release 427 | PN25: Release 428 | PO25: Release 429 | PP25: Release 430 | PQ25: Release 431 | PR25: Release 432 | PS25: Release 433 | PT25: Release 434 | PU25: Release 435 | PV25: Release 436 | PW25: Release 437 | PX25: Release 438 | PY25: Release 439 | PZ25: Release 440 | QA25: Release 441 | QB25: Release 442 | QC25: Release 443 | QD25: Release 444 | QE25: Release 445 | QF25: Release 446 | QG25: Release 447 | QH25: Release 448 | QI25: Release 449 | QJ25: Release 450 | QK25: Release 451 | QL25: Release 452 | QM25: Release 453 | QN25: Release 454 | QO25: Release 455 | QP25: Release 456 | QQ25: Release 457 | QR25: Release 458 | QS25: Release 459 | QT25: Release 460 | QU25: Release 461 | QV25: Release 462 | QW25: Release 463 | QX25: Release 464 | QY25: Release 465 | QZ25: Release 466 | RA25: Release 467 | RB25: Release 468 | RC25: Release 469 | RD25: Release 470 | RE25: Release 471 | RF25: Release 472 | RG25: Release 473 | RH25: Release 474 | RI25: Release 475 | RJ25: Release 476 | RK25: Release 477 | RL25: Release 478 | RM25: Release 479 | RN25: Release 480 | RO25: Release 481 | RP25: Release 482 | RQ25: Release 483 | RR25: Release 484 | RS25: Release 485 | RT25: Release 486 | RU25: Release 487 | RV25: Release 488 | RW25: Release 489 | RX25: Release 490 | RY25: Release 491 | RZ25: Release 492 | SA25: Release 493 | SB25: Release 494 | SC25: Release 495 | SD25: Release 496 | SE25: Release 497 | SF25: Release 498 | SG25: Release 499 | SH25: Release 500
A26: 0 | B26: =(A26*SQRT(50))/60 -> 0 | C26: 0.0048828125 | D26: 0.003662109375 | E26: 0.0048828125 | F26: 0.008544921875 | G26: 0.01098632812 | H26: 0.0146484375 | I26: 0.01586914062 | J26: 0.01953125 | K26: 0.01831054688 | L26: 0.01831054688 | M26: 0.01953125 | N26: 0.01953125 | O26: 0.01953125 | P26: 0.02319335938 | Q26: 0.02685546875 | R26: 0.03662109375 | S26: 0.03295898438 | T26: 0.03662109375 | U26: 0.0390625 | V26: 0.04028320312 | W26: 0.04028320312 | X26: 0.04150390625 | Y26: 0.0439453125 | Z26: 0.05126953125 | AA26: 0.05004882812 | AB26: 0.05004882812 | AC26: 0.05493164062 | AD26: 0.05615234375 | AE26: 0.05859375 | AF26: 0.05737304688
A27: 0.01 | B27: =(A27*SQRT(50))/60 -> 0.001178511302 | C27: 0.003662109375 | D27: 0.003662109375 | E27: 0.008544921875 | F27: 0.006103515625 | G27: 0.01098632812 | H27: 0.01342773438 | I27: 0.01586914062 | J27: 0.01831054688 | K27: 0.01953125 | L27: 0.01953125 | M27: 0.01953125 | N27: 0.01953125 | O27: 0.01953125 | P27: 0.02319335938 | Q27: 0.029296875 | R27: 0.03662109375 | S27: 0.03662109375 | T27: 0.03784179688 | U27: 0.0390625 | V27: 0.04028320312 | W27: 0.04150390625 | X27: 0.04150390625 | Y27: 0.0439453125 | Z27: 0.05249023438 | AA27: 0.05004882812 | AB27: 0.05126953125 | AC27: 0.05126953125 | AD27: 0.05859375 | AE27: 0.05859375 | AF27: 0.05737304688
A28: 0.02 | B28: =(A28*SQRT(50))/60 -> 0.002357022604 | C28: 0.003662109375 | D28: 0.0048828125 | E28: 0.00732421875 | F28: 0.00732421875 | G28: 0.01098632812 | H28: 0.01586914062 | I28: 0.01586914062 | J28: 0.01831054688 | K28: 0.01953125 | L28: 0.01953125 | M28: 0.01953125 | N28: 0.01953125 | O28: 0.01953125 | P28: 0.02319335938 | Q28: 0.02563476562 | R28: 0.03540039062 | S28: 0.03662109375 | T28: 0.03784179688 | U28: 0.0390625 | V28: 0.04028320312 | W28: 0.04150390625 | X28: 0.04272460938 | Y28: 0.048828125 | Z28: 0.05126953125 | AA28: 0.05004882812 | AB28: 0.05493164062 | AC28: 0.0537109375 | AD28: 0.05859375 | AE28: 0.05859375 | AF28: 0.05859375
A29: 0.03 | B29: =(A29*SQRT(50))/60 -> 0.003535533906 | C29: 0.001220703125 | D29: 0.006103515625 | E29: 0.006103515625 | F29: 0.009765625 | G29: 0.01220703125 | H29: 0.0146484375 | I29: 0.01586914062 | J29: 0.01831054688 | K29: 0.01831054688 | L29: 0.01953125 | M29: 0.01953125 | N29: 0.01953125 | O29: 0.01953125 | P29: 0.02197265625 | Q29: 0.029296875 | R29: 0.03662109375 | S29: 0.03540039062 | T29: 0.03662109375 | U29: 0.0390625 | V29: 0.0390625 | W29: 0.04272460938 | X29: 0.04516601562 | Y29: 0.04638671875 | Z29: 0.05004882812 | AA29: 0.05126953125 | AB29: 0.0537109375 | AC29: 0.0537109375 | AD29: 0.05737304688 | AE29: 0.05859375 | AF29: 0.05859375
A30: 0.04 | B30: 0.004714045208 | C30: 0.00244140625 | D30: 0.006103515625 | E30: 0.006103515625 | F30: 0.009765625 | G30: 0.009765625 | H30: 0.0146484375 | I30: 0.01708984375 | J30: 0.01708984375 | K30: 0.01708984375 | L30: 0.01953125 | M30: 0.01953125 | N30: 0.01953125 | O30: 0.01953125 | P30: 0.02197265625 | Q30: 0.029296875 | R30: 0.03784179688 | S30: 0.03540039062 | T30: 0.0390625 | U30: 0.0390625 | V30: 0.0390625 | W30: 0.04272460938 | X30: 0.04150390625 | Y30: 0.0439453125 | Z30: 0.05126953125 | AA30: 0.05004882812 | AB30: 0.05249023438 | AC30: 0.0537109375 | AD30: 0.05737304688 | AE30: 0.05859375 | AF30: 0.05859375
A31: 0.05 | B31: 0.00589255651 | C31: 0.001220703125 | D31: 0.0048828125 | E31: 0.006103515625 | F31: 0.00732421875 | G31: 0.01342773438 | H31: 0.01342773438 | I31: 0.01586914062 | J31: 0.01831054688 | K31: 0.01953125 | L31: 0.01953125 | M31: 0.01953125 | N31: 0.01953125 | O31: 0.01953125 | P31: 0.02197265625 | Q31: 0.02807617188 | R31: 0.03662109375 | S31: 0.03540039062 | T31: 0.0390625 | U31: 0.0390625 | V31: 0.03784179688 | W31: 0.04150390625 | X31: 0.04150390625 | Y31: 0.04516601562 | Z31: 0.05004882812 | AA31: 0.05004882812 | AB31: 0.0537109375 | AC31: 0.05493164062 | AD31: 0.05737304688 | AE31: 0.05737304688 | AF31: 0.05859375
A32: 0.06 | B32: 0.007071067812 | C32: 0.001220703125 | D32: 0.006103515625 | E32: 0.009765625 | F32: 0.006103515625 | G32: 0.01220703125 | H32: 0.0146484375 | I32: 0.0146484375 | J32: 0.01953125 | K32: 0.01831054688 | L32: 0.01831054688 | M32: 0.01953125 | N32: 0.01953125 | O32: 0.02075195312 | P32: 0.02075195312 | Q32: 0.02807617188 | R32: 0.03662109375 | S32: 0.0341796875 | T32: 0.0390625 | U32: 0.0390625 | V32: 0.0390625 | W32: 0.04028320312 | X32: 0.04272460938 | Y32: 0.04638671875 | Z32: 0.05004882812 | AA32: 0.05126953125 | AB32: 0.05126953125 | AC32: 0.05493164062 | AD32: 0.05737304688 | AE32: 0.05737304688 | AF32: 0.05859375
A33: 0.07 | B33: 0.008249579114 | C33: 0.003662109375 | D33: 0.001220703125 | E33: 0.00732421875 | F33: 0.009765625 | G33: 0.01098632812 | H33: 0.01220703125 | I33: 0.0146484375 | J33: 0.01831054688 | K33: 0.01831054688 | L33: 0.01953125 | M33: 0.01831054688 | N33: 0.01953125 | O33: 0.02075195312 | P33: 0.02197265625 | Q33: 0.02685546875 | R33: 0.03662109375 | S33: 0.0341796875 | T33: 0.0390625 | U33: 0.0390625 | V33: 0.0390625 | W33: 0.0390625 | X33: 0.04272460938 | Y33: 0.04516601562 | Z33: 0.05126953125 | AA33: 0.0537109375 | AB33: 0.0537109375 | AC33: 0.05493164062 | AD33: 0.05737304688 | AE33: 0.05859375 | AF33: 0.05859375
A34: 0.08 | B34: 0.009428090416 | C34: 0.0048828125 | D34: 0.003662109375 | E34: 0.00732421875 | F34: 0.008544921875 | G34: 0.009765625 | H34: 0.0146484375 | I34: 0.0146484375 | J34: 0.01831054688 | K34: 0.01831054688 | L34: 0.01953125 | M34: 0.01953125 | N34: 0.01953125 | O34: 0.01953125 | P34: 0.02075195312 | Q34: 0.02807617188 | R34: 0.0341796875 | S34: 0.0341796875 | T34: 0.03784179688 | U34: 0.0390625 | V34: 0.04028320312 | W34: 0.04028320312 | X34: 0.04272460938 | Y34: 0.04638671875 | Z34: 0.05249023438 | AA34: 0.05126953125 | AB34: 0.05126953125 | AC34: 0.05615234375 | AD34: 0.05859375 | AE34: 0.05737304688 | AF34: 0.05859375
A35: 0.09 | B35: 0.01060660172 | C35: 0.003662109375 | D35: 0.003662109375 | E35: 0.00732421875 | F35: 0.00732421875 | G35: 0.01098632812 | H35: 0.01342773438 | I35: 0.01708984375 | J35: 0.01831054688 | K35: 0.01831054688 | L35: 0.01953125 | M35: 0.01953125 | N35: 0.01953125 | O35: 0.01953125 | P35: 0.02197265625 | Q35: 0.03051757812 | R35: 0.03784179688 | S35: 0.0341796875 | T35: 0.03662109375 | U35: 0.04028320312 | V35: 0.0390625 | W35: 0.04028320312 | X35: 0.04150390625 | Y35: 0.04516601562 | Z35: 0.048828125 | AA35: 0.05126953125 | AB35: 0.05249023438 | AC35: 0.0537109375 | AD35: 0.05737304688 | AE35: 0.05737304688 | AF35: 0.05737304688
A36: 0.1 | B36: 0.01178511302 | C36: 0.00244140625 | D36: 0.00244140625 | E36: 0.0048828125 | F36: 0.006103515625 | G36: 0.01098632812 | H36: 0.01586914062 | I36: 0.0146484375 | J36: 0.01831054688 | K36: 0.01831054688 | L36: 0.01953125 | M36: 0.01953125 | N36: 0.01953125 | O36: 0.02075195312 | P36: 0.02075195312 | Q36: 0.03051757812 | R36: 0.03662109375 | S36: 0.03662109375 | T36: 0.0390625 | U36: 0.0390625 | V36: 0.04028320312 | W36: 0.04150390625 | X36: 0.04150390625 | Y36: 0.04760742188 | Z36: 0.05126953125 | AA36: 0.05249023438 | AB36: 0.05249023438 | AC36: 0.05615234375 | AD36: 0.05859375 | AE36: 0.05859375 | AF36: 0.05737304688
A37: 0.11 | B37: 0.01296362432 | C37: 0.00244140625 | D37: 0.003662109375 | E37: 0.00732421875 | F37: 0.009765625 | G37: 0.01220703125 | H37: 0.01342773438 | I37: 0.0146484375 | J37: 0.01953125 | K37: 0.01831054688 | L37: 0.01953125 | M37: 0.01953125 | N37: 0.01953125 | O37: 0.01953125 | P37: 0.02075195312 | Q37: 0.02807617188 | R37: 0.03295898438 | S37: 0.0341796875 | T37: 0.03784179688 | U37: 0.03784179688 | V37: 0.0390625 | W37: 0.04028320312 | X37: 0.04272460938 | Y37: 0.04760742188 | Z37: 0.048828125 | AA37: 0.05004882812 | AB37: 0.05249023438 | AC37: 0.05615234375 | AD37: 0.05737304688 | AE37: 0.05615234375 | AF37: 0.05859375
A38: 0.12 | B38: 0.01414213562 | C38: 0 | D38: 0.0048828125 | E38: 0.00732421875 | F38: 0.00732421875 | G38: 0.01098632812 | H38: 0.01342773438 | I38: 0.0146484375 | J38: 0.01953125 | K38: 0.01831054688 | L38: 0.01953125 | M38: 0.01953125 | N38: 0.01953125 | O38: 0.01953125 | P38: 0.02319335938 | Q38: 0.029296875 | R38: 0.03662109375 | S38: 0.03540039062 | T38: 0.03662109375 | U38: 0.04028320312 | V38: 0.0390625 | W38: 0.04028320312 | X38: 0.04150390625 | Y38: 0.04638671875 | Z38: 0.05249023438 | AA38: 0.05126953125 | AB38: 0.05004882812 | AC38: 0.05493164062 | AD38: 0.05737304688 | AE38: 0.05859375 | AF38: 0.05859375
A39: 0.13 | B39: 0.01532064693 | C39: 0.001220703125 | D39: 0.003662109375 | E39: 0.009765625 | F39: 0.009765625 | G39: 0.009765625 | H39: 0.01342773438 | I39: 0.01586914062 | J39: 0.01831054688 | K39: 0.01831054688 | L39: 0.01953125 | M39: 0.01953125 | N39: 0.02075195312 | O39: 0.02075195312 | P39: 0.02075195312 | Q39: 0.02563476562 | R39: 0.0341796875 | S39: 0.03662109375 | T39: 0.03784179688 | U39: 0.0390625 | V39: 0.0390625 | W39: 0.04028320312 | X39: 0.04516601562 | Y39: 0.04516601562 | Z39: 0.05249023438 | AA39: 0.05004882812 | AB39: 0.05249023438 | AC39: 0.05493164062 | AD39: 0.05859375 | AE39: 0.05737304688 | AF39: 0.05859375
A40: 0.14 | B40: 0.01649915823 | C40: 0.00244140625 | D40: 0.003662109375 | E40: 0.008544921875 | F40: 0.008544921875 | G40: 0.00732421875 | H40: 0.0146484375 | I40: 0.01831054688 | J40: 0.01953125 | K40: 0.01831054688 | L40: 0.01831054688 | M40: 0.01953125 | N40: 0.01953125 | O40: 0.02075195312 | P40: 0.02319335938 | Q40: 0.03051757812 | R40: 0.03784179688 | S40: 0.03540039062 | T40: 0.03662109375 | U40: 0.0390625 | V40: 0.0390625 | W40: 0.04028320312 | X40: 0.04516601562 | Y40: 0.04516601562 | Z40: 0.05126953125 | AA40: 0.05126953125 | AB40: 0.05249023438 | AC40: 0.05249023438 | AD40: 0.05859375 | AE40: 0.05737304688 | AF40: 0.05859375
A41: 0.15 | B41: 0.01767766953 | C41: 0.00244140625 | D41: 0.00244140625 | E41: 0.009765625 | F41: 0.006103515625 | G41: 0.01220703125 | H41: 0.01586914062 | I41: 0.01586914062 | J41: 0.01831054688 | K41: 0.01953125 | L41: 0.01831054688 | M41: 0.01953125 | N41: 0.01953125 | O41: 0.01953125 | P41: 0.02319335938 | Q41: 0.029296875 | R41: 0.03662109375 | S41: 0.03295898438 | T41: 0.0390625 | U41: 0.03784179688 | V41: 0.0390625 | W41: 0.04028320312 | X41: 0.04150390625 | Y41: 0.04638671875 | Z41: 0.05004882812 | AA41: 0.048828125 | AB41: 0.05249023438 | AC41: 0.05615234375 | AD41: 0.05737304688 | AE41: 0.05859375 | AF41: 0.05737304688
A42: 0.16 | B42: 0.01885618083 | C42: 0.00244140625 | D42: 0.0048828125 | E42: 0.00732421875 | F42: 0.008544921875 | G42: 0.01098632812 | H42: 0.0146484375 | I42: 0.01708984375 | J42: 0.01831054688 | K42: 0.01953125 | L42: 0.01953125 | M42: 0.01953125 | N42: 0.01953125 | O42: 0.01953125 | P42: 0.02319335938 | Q42: 0.02685546875 | R42: 0.03784179688 | S42: 0.03540039062 | T42: 0.03784179688 | U42: 0.04028320312 | V42: 0.04028320312 | W42: 0.04028320312 | X42: 0.04760742188 | Y42: 0.04516601562 | Z42: 0.05126953125 | AA42: 0.05004882812 | AB42: 0.0537109375 | AC42: 0.05615234375 | AD42: 0.05859375 | AE42: 0.05859375 | AF42: 0.05737304688
A43: 0.17 | B43: 0.02003469213 | C43: 0.0048828125 | D43: 0.00732421875 | E43: 0.00732421875 | F43: 0.008544921875 | G43: 0.01098632812 | H43: 0.0146484375 | I43: 0.01342773438 | J43: 0.01953125 | K43: 0.01831054688 | L43: 0.01831054688 | M43: 0.01953125 | N43: 0.01953125 | O43: 0.01953125 | P43: 0.02197265625 | Q43: 0.029296875 | R43: 0.0341796875 | S43: 0.03540039062 | T43: 0.0390625 | U43: 0.0390625 | V43: 0.0390625 | W43: 0.04028320312 | X43: 0.04760742188 | Y43: 0.04516601562 | Z43: 0.05126953125 | AA43: 0.05004882812 | AB43: 0.05249023438 | AC43: 0.05493164062 | AD43: 0.05737304688 | AE43: 0.05737304688 | AF43: 0.05859375
A44: 0.18 | B44: 0.02121320344 | C44: 0.00244140625 | D44: 0.003662109375 | E44: 0.00732421875 | F44: 0.008544921875 | G44: 0.008544921875 | H44: 0.0146484375 | I44: 0.01586914062 | J44: 0.01831054688 | K44: 0.01953125 | L44: 0.01953125 | M44: 0.01953125 | N44: 0.01953125 | O44: 0.02075195312 | P44: 0.02197265625 | Q44: 0.02685546875 | R44: 0.03540039062 | S44: 0.03295898438 | T44: 0.0390625 | U44: 0.0390625 | V44: 0.0390625 | W44: 0.04028320312 | X44: 0.04150390625 | Y44: 0.04638671875 | Z44: 0.05004882812 | AA44: 0.05126953125 | AB44: 0.05126953125 | AC44: 0.0537109375 | AD44: 0.05859375 | AE44: 0.05859375 | AF44: 0.05859375
A45: 0.19 | B45: 0.02239171474 | C45: 0.001220703125 | D45: 0.001220703125 | E45: 0.006103515625 | F45: 0.008544921875 | G45: 0.01098632812 | H45: 0.0146484375 | I45: 0.01708984375 | J45: 0.01831054688 | K45: 0.01708984375 | L45: 0.01953125 | M45: 0.01831054688 | N45: 0.01953125 | O45: 0.01953125 | P45: 0.0244140625 | Q45: 0.029296875 | R45: 0.03540039062 | S45: 0.03662109375 | T45: 0.0390625 | U45: 0.0390625 | V45: 0.0390625 | W45: 0.0390625 | X45: 0.0439453125 | Y45: 0.0439453125 | Z45: 0.0537109375 | AA45: 0.05126953125 | AB45: 0.05249023438 | AC45: 0.0537109375 | AD45: 0.05859375 | AE45: 0.05737304688 | AF45: 0.05859375
A46: 0.2 | B46: 0.02357022604 | C46: 0.003662109375 | D46: 0.0048828125 | E46: 0.009765625 | F46: 0.008544921875 | G46: 0.00732421875 | H46: 0.01098632812 | I46: 0.01586914062 | J46: 0.01953125 | K46: 0.01953125 | L46: 0.01953125 | M46: 0.01953125 | N46: 0.01953125 | O46: 0.02075195312 | P46: 0.02197265625 | Q46: 0.029296875 | R46: 0.03662109375 | S46: 0.03540039062 | T46: 0.03784179688 | U46: 0.04150390625 | V46: 0.0390625 | W46: 0.04028320312 | X46: 0.04638671875 | Y46: 0.04516601562 | Z46: 0.05126953125 | AA46: 0.048828125 | AB46: 0.05249023438 | AC46: 0.05615234375 | AD46: 0.05737304688 | AE46: 0.05737304688 | AF46: 0.05859375
A47: 0.21 | B47: 0.02474873734 | C47: 0 | D47: 0.00244140625 | E47: 0.006103515625 | F47: 0.008544921875 | G47: 0.01220703125 | H47: 0.01220703125 | I47: 0.01586914062 | J47: 0.01831054688 | K47: 0.01953125 | L47: 0.01831054688 | M47: 0.01953125 | N47: 0.01953125 | O47: 0.01953125 | P47: 0.02197265625 | Q47: 0.02807617188 | R47: 0.03662109375 | S47: 0.03295898438 | T47: 0.0390625 | U47: 0.0390625 | V47: 0.0390625 | W47: 0.0390625 | X47: 0.04516601562 | Y47: 0.04638671875 | Z47: 0.05004882812 | AA47: 0.05249023438 | AB47: 0.048828125 | AC47: 0.05615234375 | AD47: 0.05737304688 | AE47: 0.05859375 | AF47: 0.05737304688
A48: 0.22 | B48: 0.02592724864 | C48: 0.00244140625 | D48: 0.003662109375 | E48: 0.008544921875 | F48: 0.008544921875 | G48: 0.01098632812 | H48: 0.01586914062 | I48: 0.01342773438 | J48: 0.01831054688 | K48: 0.01831054688 | L48: 0.01953125 | M48: 0.01953125 | N48: 0.01953125 | O48: 0.01953125 | P48: 0.0244140625 | Q48: 0.029296875 | R48: 0.03540039062 | S48: 0.03540039062 | T48: 0.03784179688 | U48: 0.0390625 | V48: 0.0390625 | W48: 0.04150390625 | X48: 0.04272460938 | Y48: 0.04516601562 | Z48: 0.05126953125 | AA48: 0.048828125 | AB48: 0.05249023438 | AC48: 0.0537109375 | AD48: 0.05859375 | AE48: 0.05737304688 | AF48: 0.05859375
A49: 0.23 | B49: 0.02710575995 | C49: 0.00244140625 | D49: 0.003662109375 | E49: 0.009765625 | F49: 0.006103515625 | G49: 0.01098632812 | H49: 0.01342773438 | I49: 0.01586914062 | J49: 0.01831054688 | K49: 0.01831054688 | L49: 0.01953125 | M49: 0.01953125 | N49: 0.02075195312 | O49: 0.02075195312 | P49: 0.02075195312 | Q49: 0.02685546875 | R49: 0.03540039062 | S49: 0.03540039062 | T49: 0.0390625 | U49: 0.04028320312 | V49: 0.0390625 | W49: 0.04272460938 | X49: 0.04150390625 | Y49: 0.04760742188 | Z49: 0.05004882812 | AA49: 0.05004882812 | AB49: 0.05249023438 | AC49: 0.05615234375 | AD49: 0.05859375 | AE49: 0.05859375 | AF49: 0.05859375
A50: 0.24 | B50: 0.02828427125 | C50: 0.003662109375 | D50: 0.00244140625 | E50: 0.006103515625 | F50: 0.00732421875 | G50: 0.009765625 | H50: 0.0146484375 | I50: 0.01708984375 | J50: 0.01831054688 | K50: 0.01953125 | L50: 0.01953125 | M50: 0.01953125 | N50: 0.01953125 | O50: 0.02075195312 | P50: 0.0244140625 | Q50: 0.02807617188 | R50: 0.03540039062 | S50: 0.03662109375 | T50: 0.03784179688 | U50: 0.04028320312 | V50: 0.0390625 | W50: 0.04150390625 | X50: 0.04272460938 | Y50: 0.04516601562 | Z50: 0.05126953125 | AA50: 0.05126953125 | AB50: 0.05249023438 | AC50: 0.05493164062 | AD50: 0.05737304688 | AE50: 0.05737304688 | AF50: 0.05859375
A51: 0.25 | B51: 0.02946278255 | C51: 0.003662109375 | D51: 0.0048828125 | E51: 0.00732421875 | F51: 0.008544921875 | G51: 0.009765625 | H51: 0.0146484375 | I51: 0.0146484375 | J51: 0.01831054688 | K51: 0.01831054688 | L51: 0.01831054688 | M51: 0.01953125 | N51: 0.01953125 | O51: 0.02075195312 | P51: 0.02075195312 | Q51: 0.02319335938 | R51: 0.03784179688 | S51: 0.03784179688 | T51: 0.03784179688 | U51: 0.0390625 | V51: 0.0390625 | W51: 0.04150390625 | X51: 0.04638671875 | Y51: 0.04760742188 | Z51: 0.05126953125 | AA51: 0.048828125 | AB51: 0.05126953125 | AC51: 0.0537109375 | AD51: 0.05859375 | AE51: 0.05859375 | AF51: 0.05859375
A52: 0.26 | B52: 0.03064129385 | C52: 0.003662109375 | D52: 0.003662109375 | E52: 0.00732421875 | F52: 0.00732421875 | G52: 0.01220703125 | H52: 0.01342773438 | I52: 0.0146484375 | J52: 0.01953125 | K52: 0.01953125 | L52: 0.01953125 | M52: 0.01953125 | N52: 0.01953125 | O52: 0.01953125 | P52: 0.02197265625 | Q52: 0.02685546875 | R52: 0.03662109375 | S52: 0.03662109375 | T52: 0.0390625 | U52: 0.0390625 | V52: 0.03784179688 | W52: 0.04028320312 | X52: 0.04638671875 | Y52: 0.0439453125 | Z52: 0.05004882812 | AA52: 0.05004882812 | AB52: 0.0537109375 | AC52: 0.05249023438 | AD52: 0.05859375 | AE52: 0.05859375 | AF52: 0.05859375
A53: 0.27 | B53: 0.03181980515 | C53: 0.00244140625 | D53: 0.0048828125 | E53: 0.006103515625 | F53: 0.008544921875 | G53: 0.009765625 | H53: 0.01708984375 | I53: 0.01586914062 | J53: 0.01831054688 | K53: 0.01953125 | L53: 0.01831054688 | M53: 0.01953125 | N53: 0.01953125 | O53: 0.02075195312 | P53: 0.02197265625 | Q53: 0.0244140625 | R53: 0.0341796875 | S53: 0.03540039062 | T53: 0.03784179688 | U53: 0.0390625 | V53: 0.0390625 | W53: 0.0390625 | X53: 0.04638671875 | Y53: 0.04516601562 | Z53: 0.05126953125 | AA53: 0.048828125 | AB53: 0.0537109375 | AC53: 0.05493164062 | AD53: 0.05737304688 | AE53: 0.05859375 | AF53: 0.05859375
A54: 0.28 | B54: 0.03299831646 | C54: 0.0048828125 | D54: 0.006103515625 | E54: 0.006103515625 | F54: 0.008544921875 | G54: 0.009765625 | H54: 0.01586914062 | I54: 0.0146484375 | J54: 0.01831054688 | K54: 0.01953125 | L54: 0.01953125 | M54: 0.01953125 | N54: 0.02075195312 | O54: 0.01953125 | P54: 0.02075195312 | Q54: 0.02319335938 | R54: 0.03662109375 | S54: 0.03540039062 | T54: 0.0390625 | U54: 0.03784179688 | V54: 0.0390625 | W54: 0.04028320312 | X54: 0.04272460938 | Y54: 0.04760742188 | Z54: 0.048828125 | AA54: 0.05126953125 | AB54: 0.05249023438 | AC54: 0.05615234375 | AD54: 0.05615234375 | AE54: 0.05615234375 | AF54: 0.05859375
A55: 0.29 | B55: 0.03417682776 | C55: 0.00244140625 | D55: 0.0048828125 | E55: 0.006103515625 | F55: 0.01098632812 | G55: 0.01098632812 | H55: 0.0146484375 | I55: 0.01586914062 | J55: 0.01708984375 | K55: 0.01831054688 | L55: 0.01953125 | M55: 0.01953125 | N55: 0.01953125 | O55: 0.01953125 | P55: 0.02075195312 | Q55: 0.02685546875 | R55: 0.03784179688 | S55: 0.03662109375 | T55: 0.03662109375 | U55: 0.0390625 | V55: 0.0390625 | W55: 0.04150390625 | X55: 0.04638671875 | Y55: 0.04760742188 | Z55: 0.05493164062 | AA55: 0.05126953125 | AB55: 0.05249023438 | AC55: 0.0537109375 | AD55: 0.05737304688 | AE55: 0.05859375 | AF55: 0.05859375
A56: 0.3 | B56: 0.03535533906 | C56: 0.00244140625 | D56: 0.0048828125 | E56: 0.003662109375 | F56: 0.008544921875 | G56: 0.01342773438 | H56: 0.01586914062 | I56: 0.01586914062 | J56: 0.01953125 | K56: 0.01831054688 | L56: 0.01953125 | M56: 0.01953125 | N56: 0.01953125 | O56: 0.02075195312 | P56: 0.02075195312 | Q56: 0.02685546875 | R56: 0.03662109375 | S56: 0.0341796875 | T56: 0.0390625 | U56: 0.03784179688 | V56: 0.0390625 | W56: 0.04028320312 | X56: 0.04028320312 | Y56: 0.048828125 | Z56: 0.05249023438 | AA56: 0.048828125 | AB56: 0.05004882812 | AC56: 0.0537109375 | AD56: 0.05859375 | AE56: 0.05859375 | AF56: 0.05859375
A57: 0.31 | B57: 0.03653385036 | C57: 0.001220703125 | D57: 0.006103515625 | E57: 0.006103515625 | F57: 0.006103515625 | G57: 0.01098632812 | H57: 0.01586914062 | I57: 0.01586914062 | J57: 0.01831054688 | K57: 0.01831054688 | L57: 0.01953125 | M57: 0.01953125 | N57: 0.01953125 | O57: 0.02075195312 | P57: 0.0244140625 | Q57: 0.02807617188 | R57: 0.03540039062 | S57: 0.03540039062 | T57: 0.0390625 | U57: 0.03784179688 | V57: 0.04028320312 | W57: 0.04028320312 | X57: 0.04272460938 | Y57: 0.04638671875 | Z57: 0.04760742188 | AA57: 0.05004882812 | AB57: 0.05249023438 | AC57: 0.0537109375 | AD57: 0.05859375 | AE57: 0.05615234375 | AF57: 0.05737304688
A58: 0.32 | B58: 0.03771236166 | C58: 0.003662109375 | D58: 0.003662109375 | E58: 0.0048828125 | F58: 0.00732421875 | G58: 0.01220703125 | H58: 0.01342773438 | I58: 0.01708984375 | J58: 0.01831054688 | K58: 0.01831054688 | L58: 0.01953125 | M58: 0.01953125 | N58: 0.01953125 | O58: 0.02075195312 | P58: 0.02197265625 | Q58: 0.02685546875 | R58: 0.03540039062 | S58: 0.03784179688 | T58: 0.0390625 | U58: 0.0390625 | V58: 0.04028320312 | W58: 0.0390625 | X58: 0.04638671875 | Y58: 0.0439453125 | Z58: 0.05004882812 | AA58: 0.05126953125 | AB58: 0.048828125 | AC58: 0.05249023438 | AD58: 0.05615234375 | AE58: 0.05737304688 | AF58: 0.05859375
A59: 0.33 | B59: 0.03889087297 | C59: 0.001220703125 | D59: 0.00244140625 | E59: 0.00732421875 | F59: 0.008544921875 | G59: 0.01220703125 | H59: 0.01220703125 | I59: 0.01586914062 | J59: 0.01831054688 | K59: 0.01953125 | L59: 0.01953125 | M59: 0.01953125 | N59: 0.02075195312 | O59: 0.02197265625 | P59: 0.0244140625 | Q59: 0.03051757812 | R59: 0.03662109375 | S59: 0.03540039062 | T59: 0.0390625 | U59: 0.0390625 | V59: 0.0390625 | W59: 0.0390625 | X59: 0.04638671875 | Y59: 0.0439453125 | Z59: 0.0537109375 | AA59: 0.05249023438 | AB59: 0.05004882812 | AC59: 0.0537109375 | AD59: 0.05737304688 | AE59: 0.05615234375 | AF59: 0.05859375
A60: 0.34 | B60: 0.04006938427 | C60: 0.00244140625 | D60: 0.00244140625 | E60: 0.006103515625 | F60: 0.00732421875 | G60: 0.01098632812 | H60: 0.0146484375 | I60: 0.01708984375 | J60: 0.01831054688 | K60: 0.01953125 | L60: 0.01831054688 | M60: 0.01953125 | N60: 0.02075195312 | O60: 0.01953125 | P60: 0.02319335938 | Q60: 0.02563476562 | R60: 0.03784179688 | S60: 0.03540039062 | T60: 0.03662109375 | U60: 0.0390625 | V60: 0.0390625 | W60: 0.04028320312 | X60: 0.04516601562 | Y60: 0.04272460938 | Z60: 0.048828125 | AA60: 0.05004882812 | AB60: 0.05004882812 | AC60: 0.05737304688 | AD60: 0.05737304688 | AE60: 0.05859375 | AF60: 0.05859375
A61: 0.35 | B61: 0.04124789557 | C61: 0.00244140625 | D61: 0.0048828125 | E61: 0.009765625 | F61: 0.006103515625 | G61: 0.01098632812 | H61: 0.01342773438 | I61: 0.0146484375 | J61: 0.01953125 | K61: 0.01953125 | L61: 0.01953125 | M61: 0.01953125 | N61: 0.01953125 | O61: 0.02075195312 | P61: 0.02197265625 | Q61: 0.02685546875 | R61: 0.03662109375 | S61: 0.03540039062 | T61: 0.03784179688 | U61: 0.0390625 | V61: 0.04028320312 | W61: 0.0390625 | X61: 0.04272460938 | Y61: 0.0439453125 | Z61: 0.05004882812 | AA61: 0.05004882812 | AB61: 0.05004882812 | AC61: 0.05615234375 | AD61: 0.05859375 | AE61: 0.05737304688 | AF61: 0.05737304688
A62: 0.36 | B62: 0.04242640687 | C62: 0.001220703125 | D62: 0.006103515625 | E62: 0.00732421875 | F62: 0.008544921875 | G62: 0.01220703125 | H62: 0.01342773438 | I62: 0.01708984375 | J62: 0.01953125 | K62: 0.01953125 | L62: 0.01953125 | M62: 0.01953125 | N62: 0.01953125 | O62: 0.02075195312 | P62: 0.02197265625 | Q62: 0.02563476562 | R62: 0.03540039062 | S62: 0.0341796875 | T62: 0.03784179688 | U62: 0.0390625 | V62: 0.0390625 | W62: 0.04150390625 | X62: 0.04516601562 | Y62: 0.0439453125 | Z62: 0.05004882812 | AA62: 0.05249023438 | AB62: 0.05249023438 | AC62: 0.05249023438 | AD62: 0.05615234375 | AE62: 0.05615234375 | AF62: 0.05737304688
A63: 0.37 | B63: 0.04360491817 | C63: 0.00244140625 | D63: 0.00244140625 | E63: 0.00732421875 | F63: 0.0048828125 | G63: 0.01220703125 | H63: 0.01342773438 | I63: 0.01586914062 | J63: 0.01953125 | K63: 0.01708984375 | L63: 0.01953125 | M63: 0.01953125 | N63: 0.01953125 | O63: 0.01953125 | P63: 0.02319335938 | Q63: 0.02685546875 | R63: 0.03662109375 | S63: 0.03540039062 | T63: 0.03784179688 | U63: 0.0390625 | V63: 0.0390625 | W63: 0.04150390625 | X63: 0.0439453125 | Y63: 0.0439453125 | Z63: 0.05249023438 | AA63: 0.048828125 | AB63: 0.05249023438 | AC63: 0.05126953125 | AD63: 0.05737304688 | AE63: 0.05859375 | AF63: 0.05859375
A64: 0.38 | B64: 0.04478342948 | C64: 0.00244140625 | D64: 0.006103515625 | E64: 0.008544921875 | F64: 0.00732421875 | G64: 0.01098632812 | H64: 0.01220703125 | I64: 0.0146484375 | J64: 0.01831054688 | K64: 0.01953125 | L64: 0.01953125 | M64: 0.01953125 | N64: 0.01953125 | O64: 0.02075195312 | P64: 0.02197265625 | Q64: 0.02807617188 | R64: 0.03662109375 | S64: 0.03540039062 | T64: 0.04028320312 | U64: 0.0390625 | V64: 0.0390625 | W64: 0.04150390625 | X64: 0.04272460938 | Y64: 0.04516601562 | Z64: 0.048828125 | AA64: 0.05004882812 | AB64: 0.0537109375 | AC64: 0.05126953125 | AD64: 0.05737304688 | AE64: 0.05859375 | AF64: 0.05859375
A65: 0.39 | B65: 0.04596194078 | C65: 0.00244140625 | D65: 0.003662109375 | E65: 0.008544921875 | F65: 0.00732421875 | G65: 0.01342773438 | H65: 0.01220703125 | I65: 0.01831054688 | J65: 0.01953125 | K65: 0.01708984375 | L65: 0.01953125 | M65: 0.01953125 | N65: 0.01953125 | O65: 0.01953125 | P65: 0.02319335938 | Q65: 0.029296875 | R65: 0.03540039062 | S65: 0.03173828125 | T65: 0.0390625 | U65: 0.0390625 | V65: 0.0390625 | W65: 0.04028320312 | X65: 0.04638671875 | Y65: 0.04516601562 | Z65: 0.05004882812 | AA65: 0.05004882812 | AB65: 0.05126953125 | AC65: 0.05249023438 | AD65: 0.05737304688 | AE65: 0.05737304688 | AF65: 0.05859375
A66: 0.4 | B66: 0.04714045208 | C66: 0.001220703125 | D66: 0.003662109375 | E66: 0.009765625 | F66: 0.00732421875 | G66: 0.01098632812 | H66: 0.01708984375 | I66: 0.01708984375 | J66: 0.01586914062 | K66: 0.01831054688 | L66: 0.01831054688 | M66: 0.01953125 | N66: 0.01831054688 | O66: 0.01953125 | P66: 0.02197265625 | Q66: 0.02807617188 | R66: 0.03662109375 | S66: 0.03662109375 | T66: 0.03662109375 | U66: 0.0390625 | V66: 0.0390625 | W66: 0.04028320312 | X66: 0.04516601562 | Y66: 0.0439453125 | Z66: 0.05004882812 | AA66: 0.05126953125 | AB66: 0.0537109375 | AC66: 0.0537109375 | AD66: 0.05859375 | AE66: 0.05859375 | AF66: 0.05859375
A67: 0.41 | B67: 0.04831896338 | C67: 0.00244140625 | D67: 0.008544921875 | E67: 0.008544921875 | F67: 0.009765625 | G67: 0.01342773438 | H67: 0.0146484375 | I67: 0.01831054688 | J67: 0.01831054688 | K67: 0.01831054688 | L67: 0.01953125 | M67: 0.01953125 | N67: 0.01953125 | O67: 0.01953125 | P67: 0.02319335938 | Q67: 0.02685546875 | R67: 0.03784179688 | S67: 0.0341796875 | T67: 0.03784179688 | U67: 0.0390625 | V67: 0.0390625 | W67: 0.04028320312 | X67: 0.0439453125 | Y67: 0.04516601562 | Z67: 0.05126953125 | AA67: 0.05249023438 | AB67: 0.05249023438 | AC67: 0.05493164062 | AD67: 0.05737304688 | AE67: 0.05737304688 | AF67: 0.05859375
A68: 0.42 | B68: 0.04949747468 | C68: 0.00244140625 | D68: 0.003662109375 | E68: 0.00732421875 | F68: 0.009765625 | G68: 0.01342773438 | H68: 0.01220703125 | I68: 0.01586914062 | J68: 0.01831054688 | K68: 0.01831054688 | L68: 0.01953125 | M68: 0.01953125 | N68: 0.01953125 | O68: 0.01953125 | P68: 0.02319335938 | Q68: 0.02563476562 | R68: 0.03540039062 | S68: 0.03662109375 | T68: 0.0390625 | U68: 0.0390625 | V68: 0.04028320312 | W68: 0.04028320312 | X68: 0.04028320312 | Y68: 0.04516601562 | Z68: 0.05004882812 | AA68: 0.05249023438 | AB68: 0.05126953125 | AC68: 0.0537109375 | AD68: 0.05737304688 | AE68: 0.05859375 | AF68: 0.05737304688
A69: 0.43 | B69: 0.05067598599 | C69: 0.003662109375 | D69: 0.0048828125 | E69: 0.01098632812 | F69: 0.008544921875 | G69: 0.009765625 | H69: 0.01342773438 | I69: 0.01342773438 | J69: 0.01953125 | K69: 0.01831054688 | L69: 0.01953125 | M69: 0.01953125 | N69: 0.02075195312 | O69: 0.01953125 | P69: 0.02197265625 | Q69: 0.0244140625 | R69: 0.0341796875 | S69: 0.0341796875 | T69: 0.0390625 | U69: 0.0390625 | V69: 0.03784179688 | W69: 0.04028320312 | X69: 0.0439453125 | Y69: 0.04516601562 | Z69: 0.05249023438 | AA69: 0.05004882812 | AB69: 0.05249023438 | AC69: 0.0537109375 | AD69: 0.05859375 | AE69: 0.05859375 | AF69: 0.05859375
A70: 0.44 | B70: 0.05185449729 | C70: 0.0048828125 | D70: 0.006103515625 | E70: 0.006103515625 | F70: 0.003662109375 | G70: 0.01098632812 | H70: 0.0146484375 | I70: 0.01586914062 | J70: 0.01708984375 | K70: 0.01831054688 | L70: 0.01953125 | M70: 0.01953125 | N70: 0.01953125 | O70: 0.01953125 | P70: 0.02563476562 | Q70: 0.02685546875 | R70: 0.03540039062 | S70: 0.03540039062 | T70: 0.0390625 | U70: 0.04028320312 | V70: 0.0390625 | W70: 0.0390625 | X70: 0.0439453125 | Y70: 0.04516601562 | Z70: 0.05126953125 | AA70: 0.05249023438 | AB70: 0.05249023438 | AC70: 0.05249023438 | AD70: 0.05737304688 | AE70: 0.05859375 | AF70: 0.05859375
A71: 0.45 | B71: 0.05303300859 | C71: 0.001220703125 | D71: 0.006103515625 | E71: 0.008544921875 | F71: 0.00732421875 | G71: 0.01342773438 | H71: 0.0146484375 | I71: 0.01708984375 | J71: 0.01708984375 | K71: 0.01831054688 | L71: 0.01953125 | M71: 0.01953125 | N71: 0.01953125 | O71: 0.01953125 | P71: 0.02319335938 | Q71: 0.02807617188 | R71: 0.03662109375 | S71: 0.03540039062 | T71: 0.03784179688 | U71: 0.03784179688 | V71: 0.0390625 | W71: 0.04028320312 | X71: 0.04272460938 | Y71: 0.0439453125 | Z71: 0.05004882812 | AA71: 0.05004882812 | AB71: 0.05249023438 | AC71: 0.05126953125 | AD71: 0.05859375 | AE71: 0.05859375 | AF71: 0.05981445312
A72: 0.46 | B72: 0.05421151989 | C72: 0 | D72: 0.006103515625 | E72: 0.006103515625 | F72: 0.00732421875 | G72: 0.01220703125 | H72: 0.01342773438 | I72: 0.01708984375 | J72: 0.01831054688 | K72: 0.01953125 | L72: 0.01953125 | M72: 0.01831054688 | N72: 0.01953125 | O72: 0.02075195312 | P72: 0.02197265625 | Q72: 0.02807617188 | R72: 0.03784179688 | S72: 0.03540039062 | T72: 0.0390625 | U72: 0.0390625 | V72: 0.04028320312 | W72: 0.0390625 | X72: 0.04272460938 | Y72: 0.04516601562 | Z72: 0.05004882812 | AA72: 0.05126953125 | AB72: 0.05249023438 | AC72: 0.05615234375 | AD72: 0.05859375 | AE72: 0.05859375 | AF72: 0.05859375
A73: 0.47 | B73: 0.05539003119 | C73: 0.003662109375 | D73: 0.006103515625 | E73: 0.008544921875 | F73: 0.009765625 | G73: 0.008544921875 | H73: 0.0146484375 | I73: 0.0146484375 | J73: 0.01831054688 | K73: 0.01953125 | L73: 0.01831054688 | M73: 0.01953125 | N73: 0.01831054688 | O73: 0.01953125 | P73: 0.02319335938 | Q73: 0.02563476562 | R73: 0.03540039062 | S73: 0.0341796875 | T73: 0.03662109375 | U73: 0.0390625 | V73: 0.04028320312 | W73: 0.04150390625 | X73: 0.0439453125 | Y73: 0.04516601562 | Z73: 0.0537109375 | AA73: 0.05126953125 | AB73: 0.05249023438 | AC73: 0.0537109375 | AD73: 0.05615234375 | AE73: 0.05737304688 | AF73: 0.05859375
A74: 0.48 | B74: 0.05656854249 | C74: 0.0048828125 | D74: 0.00732421875 | E74: 0.006103515625 | F74: 0.008544921875 | G74: 0.01098632812 | H74: 0.01342773438 | I74: 0.01708984375 | J74: 0.01708984375 | K74: 0.01831054688 | L74: 0.01953125 | M74: 0.01831054688 | N74: 0.01953125 | O74: 0.01953125 | P74: 0.02319335938 | Q74: 0.02563476562 | R74: 0.03662109375 | S74: 0.03295898438 | T74: 0.0390625 | U74: 0.0390625 | V74: 0.0390625 | W74: 0.04272460938 | X74: 0.04150390625 | Y74: 0.04638671875 | Z74: 0.05126953125 | AA74: 0.05249023438 | AB74: 0.05249023438 | AC74: 0.05615234375 | AD74: 0.05615234375 | AE74: 0.05737304688 | AF74: 0.05859375
A75: 0.49 | B75: 0.0577470538 | C75: 0.003662109375 | D75: 0.00244140625 | E75: 0.00732421875 | F75: 0.0048828125 | G75: 0.01098632812 | H75: 0.0146484375 | I75: 0.01586914062 | J75: 0.01831054688 | K75: 0.01953125 | L75: 0.01953125 | M75: 0.01953125 | N75: 0.01953125 | O75: 0.01953125 | P75: 0.02563476562 | Q75: 0.02563476562 | R75: 0.03540039062 | S75: 0.03540039062 | T75: 0.0390625 | U75: 0.0390625 | V75: 0.03784179688 | W75: 0.04150390625 | X75: 0.0439453125 | Y75: 0.0439453125 | Z75: 0.05126953125 | AA75: 0.05249023438 | AB75: 0.0537109375 | AC75: 0.05493164062 | AD75: 0.05737304688 | AE75: 0.05859375 | AF75: 0.05859375
A76: 0.5 | B76: 0.0589255651 | C76: 0.003662109375 | D76: 0.0048828125 | E76: 0.008544921875 | F76: 0.006103515625 | G76: 0.01220703125 | H76: 0.01220703125 | I76: 0.0146484375 | J76: 0.01831054688 | K76: 0.01708984375 | L76: 0.01953125 | M76: 0.01953125 | N76: 0.02075195312 | O76: 0.01953125 | P76: 0.0244140625 | Q76: 0.02685546875 | R76: 0.03662109375 | S76: 0.03295898438 | T76: 0.0390625 | U76: 0.0390625 | V76: 0.0390625 | W76: 0.0390625 | X76: 0.04150390625 | Y76: 0.04272460938 | Z76: 0.0537109375 | AA76: 0.0537109375 | AB76: 0.05493164062 | AC76: 0.05615234375 | AD76: 0.05737304688 | AE76: 0.05859375 | AF76: 0.05859375
A77: 0.51 | B77: 0.0601040764 | C77: 0.003662109375 | D77: 0.006103515625 | E77: 0.0048828125 | F77: 0.01098632812 | G77: 0.01220703125 | H77: 0.01342773438 | I77: 0.01586914062 | J77: 0.01953125 | K77: 0.01831054688 | L77: 0.01953125 | M77: 0.01953125 | N77: 0.01953125 | O77: 0.01953125 | P77: 0.02319335938 | Q77: 0.02685546875 | R77: 0.03540039062 | S77: 0.0341796875 | T77: 0.0390625 | U77: 0.03784179688 | V77: 0.04028320312 | W77: 0.04272460938 | X77: 0.04150390625 | Y77: 0.04638671875 | Z77: 0.05249023438 | AA77: 0.05126953125 | AB77: 0.05126953125 | AC77: 0.05249023438 | AD77: 0.05859375 | AE77: 0.05737304688 | AF77: 0.05859375
A78: 0.52 | B78: 0.0612825877 | C78: 0.001220703125 | D78: 0.003662109375 | E78: 0.003662109375 | F78: 0.008544921875 | G78: 0.01098632812 | H78: 0.0146484375 | I78: 0.01586914062 | J78: 0.01953125 | K78: 0.01953125 | L78: 0.01953125 | M78: 0.01953125 | N78: 0.01953125 | O78: 0.01953125 | P78: 0.0244140625 | Q78: 0.0244140625 | R78: 0.03662109375 | S78: 0.0341796875 | T78: 0.03662109375 | U78: 0.03784179688 | V78: 0.0390625 | W78: 0.04150390625 | X78: 0.04150390625 | Y78: 0.04638671875 | Z78: 0.05249023438 | AA78: 0.048828125 | AB78: 0.0537109375 | AC78: 0.05493164062 | AD78: 0.05859375 | AE78: 0.05859375 | AF78: 0.05859375
A79: 0.53 | B79: 0.062461099 | C79: 0.001220703125 | D79: 0.006103515625 | E79: 0.006103515625 | F79: 0.00732421875 | G79: 0.01098632812 | H79: 0.0146484375 | I79: 0.01586914062 | J79: 0.01831054688 | K79: 0.01831054688 | L79: 0.01953125 | M79: 0.01953125 | N79: 0.02075195312 | O79: 0.01953125 | P79: 0.02197265625 | Q79: 0.02563476562 | R79: 0.03784179688 | S79: 0.03540039062 | T79: 0.03784179688 | U79: 0.0390625 | V79: 0.0390625 | W79: 0.04272460938 | X79: 0.04272460938 | Y79: 0.04516601562 | Z79: 0.05004882812 | AA79: 0.048828125 | AB79: 0.05126953125 | AC79: 0.0537109375 | AD79: 0.05737304688 | AE79: 0.05859375 | AF79: 0.05859375
A80: 0.54 | B80: 0.06363961031 | C80: 0.003662109375 | D80: 0.006103515625 | E80: 0.006103515625 | F80: 0.00732421875 | G80: 0.01220703125 | H80: 0.01220703125 | I80: 0.0146484375 | J80: 0.01953125 | K80: 0.01831054688 | L80: 0.01953125 | M80: 0.01831054688 | N80: 0.01953125 | O80: 0.02075195312 | P80: 0.02197265625 | Q80: 0.02685546875 | R80: 0.03662109375 | S80: 0.03540039062 | T80: 0.0390625 | U80: 0.0390625 | V80: 0.0390625 | W80: 0.04272460938 | X80: 0.04150390625 | Y80: 0.0439453125 | Z80: 0.048828125 | AA80: 0.05249023438 | AB80: 0.05004882812 | AC80: 0.05493164062 | AD80: 0.05737304688 | AE80: 0.05859375 | AF80: 0.05859375
A81: 0.55 | B81: 0.06481812161 | C81: 0.00244140625 | D81: 0.0048828125 | E81: 0.00732421875 | F81: 0.009765625 | G81: 0.01220703125 | H81: 0.0146484375 | I81: 0.01708984375 | J81: 0.01831054688 | K81: 0.01831054688 | L81: 0.01953125 | M81: 0.01953125 | N81: 0.02075195312 | O81: 0.02075195312 | P81: 0.0244140625 | Q81: 0.02563476562 | R81: 0.03662109375 | S81: 0.03540039062 | T81: 0.0390625 | U81: 0.0390625 | V81: 0.0390625 | W81: 0.04272460938 | X81: 0.04028320312 | Y81: 0.04760742188 | Z81: 0.05249023438 | AA81: 0.05126953125 | AB81: 0.05493164062 | AC81: 0.05737304688 | AD81: 0.05737304688 | AE81: 0.05859375 | AF81: 0.05859375
A82: 0.56 | B82: 0.06599663291 | C82: 0 | D82: 0.0048828125 | E82: 0.00732421875 | F82: 0.003662109375 | G82: 0.0146484375 | H82: 0.01342773438 | I82: 0.01586914062 | J82: 0.01831054688 | K82: 0.01831054688 | L82: 0.01953125 | M82: 0.01953125 | N82: 0.01953125 | O82: 0.01953125 | P82: 0.02319335938 | Q82: 0.02807617188 | R82: 0.03540039062 | S82: 0.03295898438 | T82: 0.0390625 | U82: 0.03784179688 | V82: 0.04028320312 | W82: 0.04028320312 | X82: 0.0439453125 | Y82: 0.04516601562 | Z82: 0.05249023438 | AA82: 0.0537109375 | AB82: 0.05249023438 | AC82: 0.0537109375 | AD82: 0.05737304688 | AE82: 0.05737304688 | AF82: 0.05859375
A83: 0.57 | B83: 0.06717514421 | C83: 0.00244140625 | D83: 0.00244140625 | E83: 0.006103515625 | F83: 0.009765625 | G83: 0.01098632812 | H83: 0.0146484375 | I83: 0.01342773438 | J83: 0.01831054688 | K83: 0.01831054688 | L83: 0.01953125 | M83: 0.01953125 | N83: 0.02075195312 | O83: 0.02075195312 | P83: 0.02197265625 | Q83: 0.02807617188 | R83: 0.03662109375 | S83: 0.03295898438 | T83: 0.04028320312 | U83: 0.0390625 | V83: 0.04028320312 | W83: 0.04150390625 | X83: 0.0439453125 | Y83: 0.0439453125 | Z83: 0.05249023438 | AA83: 0.0537109375 | AB83: 0.05249023438 | AC83: 0.05493164062 | AD83: 0.05737304688 | AE83: 0.05859375 | AF83: 0.05859375
A84: 0.58 | B84: 0.06835365551 | C84: 0.00244140625 | D84: 0.003662109375 | E84: 0.008544921875 | F84: 0.008544921875 | G84: 0.01098632812 | H84: 0.01342773438 | I84: 0.0146484375 | J84: 0.01953125 | K84: 0.01953125 | L84: 0.01953125 | M84: 0.01953125 | N84: 0.01953125 | O84: 0.01953125 | P84: 0.02075195312 | Q84: 0.02685546875 | R84: 0.03662109375 | S84: 0.03662109375 | T84: 0.0390625 | U84: 0.04028320312 | V84: 0.0390625 | W84: 0.04028320312 | X84: 0.04150390625 | Y84: 0.04638671875 | Z84: 0.05126953125 | AA84: 0.0537109375 | AB84: 0.05249023438 | AC84: 0.05249023438 | AD84: 0.05859375 | AE84: 0.05737304688 | AF84: 0.05859375
A85: 0.59 | B85: 0.06953216682 | C85: 0.001220703125 | D85: 0.006103515625 | E85: 0.008544921875 | F85: 0.009765625 | G85: 0.009765625 | H85: 0.0146484375 | I85: 0.01586914062 | J85: 0.01953125 | K85: 0.01831054688 | L85: 0.01953125 | M85: 0.01831054688 | N85: 0.01953125 | O85: 0.01953125 | P85: 0.02319335938 | Q85: 0.0244140625 | R85: 0.03784179688 | S85: 0.03662109375 | T85: 0.03784179688 | U85: 0.0390625 | V85: 0.0390625 | W85: 0.04028320312 | X85: 0.0439453125 | Y85: 0.0439453125 | Z85: 0.05126953125 | AA85: 0.05126953125 | AB85: 0.05615234375 | AC85: 0.0537109375 | AD85: 0.05737304688 | AE85: 0.05859375 | AF85: 0.05859375
A86: 0.6 | B86: 0.07071067812 | C86: 0.001220703125 | D86: 0.0048828125 | E86: 0.006103515625 | F86: 0.0048828125 | G86: 0.01098632812 | H86: 0.0146484375 | I86: 0.01708984375 | J86: 0.01831054688 | K86: 0.01953125 | L86: 0.01831054688 | M86: 0.01953125 | N86: 0.01953125 | O86: 0.01953125 | P86: 0.02197265625 | Q86: 0.02563476562 | R86: 0.03784179688 | S86: 0.03662109375 | T86: 0.0390625 | U86: 0.0390625 | V86: 0.04028320312 | W86: 0.0439453125 | X86: 0.04150390625 | Y86: 0.0439453125 | Z86: 0.05126953125 | AA86: 0.05004882812 | AB86: 0.05615234375 | AC86: 0.05615234375 | AD86: 0.05859375 | AE86: 0.05859375 | AF86: 0.05859375
A87: 0.61 | B87: 0.07188918942 | C87: 0.00244140625 | D87: 0.00732421875 | E87: 0.00732421875 | F87: 0.0048828125 | G87: 0.01098632812 | H87: 0.0146484375 | I87: 0.01831054688 | J87: 0.01831054688 | K87: 0.01831054688 | L87: 0.01953125 | M87: 0.01953125 | N87: 0.01953125 | O87: 0.02075195312 | P87: 0.02319335938 | Q87: 0.02563476562 | R87: 0.03662109375 | S87: 0.03540039062 | T87: 0.03784179688 | U87: 0.0390625 | V87: 0.04028320312 | W87: 0.04028320312 | X87: 0.04516601562 | Y87: 0.04516601562 | Z87: 0.05126953125 | AA87: 0.05004882812 | AB87: 0.05493164062 | AC87: 0.0537109375 | AD87: 0.05615234375 | AE87: 0.05737304688 | AF87: 0.05859375
A88: 0.62 | B88: 0.07306770072 | C88: 0.00244140625 | D88: 0.003662109375 | E88: 0.00732421875 | F88: 0.006103515625 | G88: 0.009765625 | H88: 0.01220703125 | I88: 0.01708984375 | J88: 0.01831054688 | K88: 0.01953125 | L88: 0.01953125 | M88: 0.01953125 | N88: 0.01953125 | O88: 0.01953125 | P88: 0.02319335938 | Q88: 0.02807617188 | R88: 0.03662109375 | S88: 0.0341796875 | T88: 0.0390625 | U88: 0.0390625 | V88: 0.0390625 | W88: 0.04028320312 | X88: 0.04272460938 | Y88: 0.0439453125 | Z88: 0.0537109375 | AA88: 0.05126953125 | AB88: 0.05126953125 | AC88: 0.05493164062 | AD88: 0.05859375 | AE88: 0.05859375 | AF88: 0.05859375
A89: 0.63 | B89: 0.07424621202 | C89: 0.001220703125 | D89: 0.006103515625 | E89: 0.009765625 | F89: 0.006103515625 | G89: 0.01342773438 | H89: 0.0146484375 | I89: 0.01586914062 | J89: 0.01831054688 | K89: 0.01831054688 | L89: 0.01953125 | M89: 0.01953125 | N89: 0.01953125 | O89: 0.01953125 | P89: 0.02075195312 | Q89: 0.02685546875 | R89: 0.03662109375 | S89: 0.03662109375 | T89: 0.0390625 | U89: 0.0390625 | V89: 0.04028320312 | W89: 0.04150390625 | X89: 0.04272460938 | Y89: 0.04516601562 | Z89: 0.05249023438 | AA89: 0.048828125 | AB89: 0.0537109375 | AC89: 0.05493164062 | AD89: 0.05737304688 | AE89: 0.05615234375 | AF89: 0.05859375
A90: 0.64 | B90: 0.07542472333 | C90: 0.003662109375 | D90: 0.003662109375 | E90: 0.0048828125 | F90: 0.00732421875 | G90: 0.009765625 | H90: 0.01220703125 | I90: 0.01831054688 | J90: 0.01831054688 | K90: 0.01831054688 | L90: 0.01953125 | M90: 0.01953125 | N90: 0.01953125 | O90: 0.01953125 | P90: 0.0244140625 | Q90: 0.02807617188 | R90: 0.0390625 | S90: 0.03540039062 | T90: 0.0390625 | U90: 0.0390625 | V90: 0.0390625 | W90: 0.04150390625 | X90: 0.0439453125 | Y90: 0.04516601562 | Z90: 0.0537109375 | AA90: 0.05126953125 | AB90: 0.05493164062 | AC90: 0.05615234375 | AD90: 0.05737304688 | AE90: 0.05493164062 | AF90: 0.05859375
A91: 0.65 | B91: 0.07660323463 | C91: 0.003662109375 | D91: 0.0048828125 | E91: 0.006103515625 | F91: 0.008544921875 | G91: 0.01220703125 | H91: 0.01342773438 | I91: 0.01708984375 | J91: 0.01831054688 | K91: 0.01953125 | L91: 0.01831054688 | M91: 0.01953125 | N91: 0.01953125 | O91: 0.02075195312 | P91: 0.02319335938 | Q91: 0.029296875 | R91: 0.03540039062 | S91: 0.03540039062 | T91: 0.0390625 | U91: 0.0390625 | V91: 0.0390625 | W91: 0.04150390625 | X91: 0.04150390625 | Y91: 0.04638671875 | Z91: 0.05249023438 | AA91: 0.05126953125 | AB91: 0.05249023438 | AC91: 0.05493164062 | AD91: 0.05615234375 | AE91: 0.05859375 | AF91: 0.05737304688
A92: 0.66 | B92: 0.07778174593 | C92: 0.001220703125 | D92: 0.0048828125 | E92: 0.0048828125 | F92: 0.00732421875 | G92: 0.009765625 | H92: 0.0146484375 | I92: 0.01708984375 | J92: 0.01831054688 | K92: 0.01831054688 | L92: 0.01953125 | M92: 0.01953125 | N92: 0.01953125 | O92: 0.01953125 | P92: 0.0244140625 | Q92: 0.029296875 | R92: 0.03662109375 | S92: 0.03540039062 | T92: 0.03784179688 | U92: 0.0390625 | V92: 0.0390625 | W92: 0.04272460938 | X92: 0.04272460938 | Y92: 0.04638671875 | Z92: 0.05004882812 | AA92: 0.0537109375 | AB92: 0.0537109375 | AC92: 0.0537109375 | AD92: 0.05737304688 | AE92: 0.05859375 | AF92: 0.05737304688
A93: 0.67 | B93: =(A93*SQRT(50))/60 -> 0.07896025723 | C93: 0.001220703125 | D93: 0.003662109375 | E93: 0.003662109375 | F93: 0.008544921875 | G93: 0.00732421875 | H93: 0.01342773438 | I93: 0.01708984375 | J93: 0.01831054688 | K93: 0.01953125 | L93: 0.01831054688 | M93: 0.01953125 | N93: 0.02075195312 | O93: 0.01953125 | P93: 0.02319335938 | Q93: 0.02807617188 | R93: 0.03662109375 | S93: 0.03662109375 | T93: 0.0390625 | U93: 0.0390625 | V93: 0.0390625 | W93: 0.04150390625 | X93: 0.0439453125 | Y93: 0.04638671875 | Z93: 0.05126953125 | AA93: 0.05126953125 | AB93: 0.05493164062 | AC93: 0.0537109375 | AD93: 0.05737304688 | AE93: 0.05737304688 | AF93: 0.05859375
A94: 0.68 | B94: 0.08013876853 | C94: 0.001220703125 | D94: 0.0048828125 | E94: 0.00732421875 | F94: 0.008544921875 | G94: 0.01342773438 | H94: 0.0146484375 | I94: 0.01586914062 | J94: 0.01831054688 | K94: 0.01953125 | L94: 0.01953125 | M94: 0.01953125 | N94: 0.01953125 | O94: 0.02075195312 | P94: 0.0244140625 | Q94: 0.02685546875 | R94: 0.03662109375 | S94: 0.03540039062 | T94: 0.0390625 | U94: 0.0390625 | V94: 0.04028320312 | W94: 0.04272460938 | X94: 0.04516601562 | Y94: 0.04760742188 | Z94: 0.05004882812 | AA94: 0.05126953125 | AB94: 0.04760742188 | AC94: 0.0537109375 | AD94: 0.05737304688 | AE94: 0.05859375 | AF94: 0.05859375
A95: 0.69 | B95: 0.08131727984 | C95: 0.00244140625 | D95: 0.003662109375 | E95: 0.006103515625 | F95: 0.008544921875 | G95: 0.01098632812 | H95: 0.01342773438 | I95: 0.0146484375 | J95: 0.01831054688 | K95: 0.01831054688 | L95: 0.01953125 | M95: 0.01953125 | N95: 0.01953125 | O95: 0.02075195312 | P95: 0.02197265625 | Q95: 0.02807617188 | R95: 0.03784179688 | S95: 0.03540039062 | T95: 0.03784179688 | U95: 0.0390625 | V95: 0.03784179688 | W95: 0.04028320312 | X95: 0.04150390625 | Y95: 0.04760742188 | Z95: 0.05004882812 | AA95: 0.048828125 | AB95: 0.05249023438 | AC95: 0.05493164062 | AD95: 0.05859375 | AE95: 0.05737304688 | AF95: 0.05859375
A96: 0.7 | B96: 0.08249579114 | C96: 0.00244140625 | D96: 0.003662109375 | E96: 0.006103515625 | F96: 0.008544921875 | G96: 0.01220703125 | H96: 0.01220703125 | I96: 0.01586914062 | J96: 0.01953125 | K96: 0.01831054688 | L96: 0.01953125 | M96: 0.01953125 | N96: 0.01953125 | O96: 0.02075195312 | P96: 0.02319335938 | Q96: 0.02807617188 | R96: 0.03784179688 | S96: 0.03540039062 | T96: 0.0390625 | U96: 0.0390625 | V96: 0.0390625 | W96: 0.04272460938 | X96: 0.04272460938 | Y96: 0.04760742188 | Z96: 0.05249023438 | AA96: 0.05004882812 | AB96: 0.05493164062 | AC96: 0.05615234375 | AD96: 0.05737304688 | AE96: 0.05859375 | AF96: 0.05859375
A97: 0.71 | B97: 0.08367430244 | C97: 0.003662109375 | D97: 0.0048828125 | E97: 0.00732421875 | F97: 0.006103515625 | G97: 0.01098632812 | H97: 0.01342773438 | I97: 0.0146484375 | J97: 0.01953125 | K97: 0.01831054688 | L97: 0.01953125 | M97: 0.01953125 | N97: 0.02075195312 | O97: 0.01953125 | P97: 0.0244140625 | Q97: 0.02563476562 | R97: 0.03540039062 | S97: 0.03540039062 | T97: 0.03662109375 | U97: 0.0390625 | V97: 0.04028320312 | W97: 0.04150390625 | X97: 0.04272460938 | Y97: 0.05004882812 | Z97: 0.0537109375 | AA97: 0.05126953125 | AB97: 0.0537109375 | AC97: 0.05737304688 | AD97: 0.05737304688 | AE97: 0.05737304688 | AF97: 0.05859375
A98: 0.72 | B98: 0.08485281374 | C98: 0.003662109375 | D98: 0.003662109375 | E98: 0.006103515625 | F98: 0.00732421875 | G98: 0.009765625 | H98: 0.01220703125 | I98: 0.01586914062 | J98: 0.01831054688 | K98: 0.01831054688 | L98: 0.01953125 | M98: 0.01953125 | N98: 0.01953125 | O98: 0.01953125 | P98: 0.02197265625 | Q98: 0.02807617188 | R98: 0.03662109375 | S98: 0.03540039062 | T98: 0.03784179688 | U98: 0.0390625 | V98: 0.03784179688 | W98: 0.04272460938 | X98: 0.04272460938 | Y98: 0.04638671875 | Z98: 0.05126953125 | AA98: 0.05126953125 | AB98: 0.05249023438 | AC98: 0.05493164062 | AD98: 0.05737304688 | AE98: 0.05859375 | AF98: 0.05859375
A99: 0.73 | B99: 0.08603132504 | C99: 0.003662109375 | D99: 0.0048828125 | E99: 0.008544921875 | F99: 0.006103515625 | G99: 0.01098632812 | H99: 0.01220703125 | I99: 0.01586914062 | J99: 0.01831054688 | K99: 0.01831054688 | L99: 0.01953125 | M99: 0.01953125 | N99: 0.01953125 | O99: 0.01953125 | P99: 0.02075195312 | Q99: 0.02807617188 | R99: 0.03540039062 | S99: 0.03540039062 | T99: 0.0390625 | U99: 0.0390625 | V99: 0.04028320312 | W99: 0.04150390625 | X99: 0.04516601562 | Y99: 0.04516601562 | Z99: 0.05249023438 | AA99: 0.05126953125 | AB99: 0.05249023438 | AC99: 0.05249023438 | AD99: 0.05737304688 | AE99: 0.05737304688 | AF99: 0.05859375
A100: 0.74 | B100: 0.08720983635 | C100: 0.00244140625 | D100: 0.003662109375 | E100: 0.00732421875 | F100: 0.006103515625 | G100: 0.01098632812 | H100: 0.01586914062 | I100: 0.01586914062 | J100: 0.01831054688 | K100: 0.01953125 | L100: 0.01953125 | M100: 0.01953125 | N100: 0.01953125 | O100: 0.02075195312 | P100: 0.02197265625 | Q100: 0.02807617188 | R100: 0.03662109375 | S100: 0.0341796875 | T100: 0.0390625 | U100: 0.0390625 | V100: 0.04028320312 | W100: 0.04028320312 | X100: 0.0439453125 | Y100: 0.04272460938 | Z100: 0.05249023438 | AA100: 0.05493164062 | AB100: 0.05493164062 | AC100: 0.05615234375 | AD100: 0.05737304688 | AE100: 0.05859375 | AF100: 0.05859375
A101: 0.75 | B101: 0.08838834765 | C101: 0.00244140625 | D101: 0.0048828125 | E101: 0.00732421875 | F101: 0.00732421875 | G101: 0.01098632812 | H101: 0.01342773438 | I101: 0.0146484375 | J101: 0.01708984375 | K101: 0.01953125 | L101: 0.01953125 | M101: 0.01953125 | N101: 0.01953125 | O101: 0.02075195312 | P101: 0.02197265625 | Q101: 0.02685546875 | R101: 0.03784179688 | S101: 0.03662109375 | T101: 0.03784179688 | U101: 0.03784179688 | V101: 0.04028320312 | W101: 0.04028320312 | X101: 0.0439453125 | Y101: 0.04516601562 | Z101: 0.05126953125 | AA101: 0.048828125 | AB101: 0.0537109375 | AC101: 0.05615234375 | AD101: 0.05737304688 | AE101: 0.05859375 | AF101: 0.05859375
A102: 0.76 | B102: 0.08956685895 | C102: 0.00244140625 | D102: 0.0048828125 | E102: 0.00732421875 | F102: 0.006103515625 | G102: 0.01098632812 | H102: 0.0146484375 | I102: 0.01586914062 | J102: 0.01831054688 | K102: 0.01953125 | L102: 0.01953125 | M102: 0.01953125 | N102: 0.01953125 | O102: 0.01953125 | P102: 0.02319335938 | Q102: 0.0244140625 | R102: 0.03784179688 | S102: 0.03540039062 | T102: 0.03784179688 | U102: 0.0390625 | V102: 0.0390625 | W102: 0.0390625 | X102: 0.04516601562 | Y102: 0.04638671875 | Z102: 0.05249023438 | AA102: 0.05004882812 | AB102: 0.05004882812 | AC102: 0.05615234375 | AD102: 0.05859375 | AE102: 0.05737304688 | AF102: 0.05859375
A103: 0.77 | B103: 0.09074537025 | C103: 0.00244140625 | D103: 0.0048828125 | E103: 0.00732421875 | F103: 0.0048828125 | G103: 0.01098632812 | H103: 0.01220703125 | I103: 0.01708984375 | J103: 0.01831054688 | K103: 0.01831054688 | L103: 0.01953125 | M103: 0.01953125 | N103: 0.01953125 | O103: 0.02075195312 | P103: 0.02319335938 | Q103: 0.02685546875 | R103: 0.03662109375 | S103: 0.0341796875 | T103: 0.0390625 | U103: 0.0390625 | V103: 0.0390625 | W103: 0.04028320312 | X103: 0.04516601562 | Y103: 0.04516601562 | Z103: 0.05126953125 | AA103: 0.048828125 | AB103: 0.05249023438 | AC103: 0.05493164062 | AD103: 0.05859375 | AE103: 0.05859375 | AF103: 0.05737304688
A104: 0.78 | B104: 0.09192388155 | C104: 0.001220703125 | D104: 0.003662109375 | E104: 0.00732421875 | F104: 0.00732421875 | G104: 0.01342773438 | H104: 0.01220703125 | I104: 0.0146484375 | J104: 0.01953125 | K104: 0.01953125 | L104: 0.01953125 | M104: 0.01953125 | N104: 0.01953125 | O104: 0.01953125 | P104: 0.02197265625 | Q104: 0.02807617188 | R104: 0.0390625 | S104: 0.03540039062 | T104: 0.0390625 | U104: 0.0390625 | V104: 0.04028320312 | W104: 0.04028320312 | X104: 0.0439453125 | Y104: 0.04760742188 | Z104: 0.05249023438 | AA104: 0.05126953125 | AB104: 0.05493164062 | AC104: 0.05493164062 | AD104: 0.05859375 | AE104: 0.05615234375 | AF104: 0.05859375
A105: 0.79 | B105: 0.09310239286 | C105: 0.003662109375 | D105: 0.00732421875 | E105: 0.003662109375 | F105: 0.00732421875 | G105: 0.01342773438 | H105: 0.01220703125 | I105: 0.01708984375 | J105: 0.01831054688 | K105: 0.01831054688 | L105: 0.01953125 | M105: 0.01831054688 | N105: 0.01953125 | O105: 0.02075195312 | P105: 0.02197265625 | Q105: 0.029296875 | R105: 0.03662109375 | S105: 0.03540039062 | T105: 0.03784179688 | U105: 0.03784179688 | V105: 0.0390625 | W105: 0.04028320312 | X105: 0.0439453125 | Y105: 0.04516601562 | Z105: 0.0537109375 | AA105: 0.05004882812 | AB105: 0.0537109375 | AC105: 0.05493164062 | AD105: 0.05615234375 | AE105: 0.05859375 | AF105: 0.05859375
A106: 0.8 | B106: 0.09428090416 | C106: 0.003662109375 | D106: 0.0048828125 | E106: 0.00732421875 | F106: 0.00732421875 | G106: 0.01220703125 | H106: 0.01342773438 | I106: 0.01586914062 | J106: 0.01708984375 | K106: 0.01831054688 | L106: 0.01831054688 | M106: 0.01953125 | N106: 0.01953125 | O106: 0.02075195312 | P106: 0.02197265625 | Q106: 0.03051757812 | R106: 0.03662109375 | S106: 0.03662109375 | T106: 0.03784179688 | U106: 0.0390625 | V106: 0.03784179688 | W106: 0.04272460938 | X106: 0.04516601562 | Y106: 0.04638671875 | Z106: 0.0537109375 | AA106: 0.048828125 | AB106: 0.05493164062 | AC106: 0.05737304688 | AD106: 0.05737304688 | AE106: 0.05737304688 | AF106: 0.05859375
A107: 0.81 | B107: 0.09545941546 | C107: 0.0048828125 | D107: 0.006103515625 | E107: 0.0048828125 | F107: 0.008544921875 | G107: 0.01098632812 | H107: 0.01220703125 | I107: 0.01708984375 | J107: 0.01831054688 | K107: 0.01953125 | L107: 0.01831054688 | M107: 0.01953125 | N107: 0.01953125 | O107: 0.01953125 | P107: 0.02197265625 | Q107: 0.029296875 | R107: 0.03540039062 | S107: 0.03295898438 | T107: 0.03662109375 | U107: 0.0390625 | V107: 0.0390625 | W107: 0.0390625 | X107: 0.04516601562 | Y107: 0.04760742188 | Z107: 0.05126953125 | AA107: 0.048828125 | AB107: 0.05126953125 | AC107: 0.0537109375 | AD107: 0.05615234375 | AE107: 0.05615234375 | AF107: 0.05859375
A108: 0.82 | B108: 0.09663792676 | C108: 0.001220703125 | D108: 0.003662109375 | E108: 0.006103515625 | F108: 0.00732421875 | G108: 0.01220703125 | H108: 0.01342773438 | I108: 0.01586914062 | J108: 0.01831054688 | K108: 0.01831054688 | L108: 0.01953125 | M108: 0.01953125 | N108: 0.01953125 | O108: 0.01953125 | P108: 0.02197265625 | Q108: 0.029296875 | R108: 0.03784179688 | S108: 0.0341796875 | T108: 0.03784179688 | U108: 0.0390625 | V108: 0.0390625 | W108: 0.0390625 | X108: 0.0439453125 | Y108: 0.04760742188 | Z108: 0.05004882812 | AA108: 0.05249023438 | AB108: 0.0537109375 | AC108: 0.0537109375 | AD108: 0.05737304688 | AE108: 0.05859375 | AF108: 0.05859375
A109: 0.83 | B109: 0.09781643806 | C109: 0.00244140625 | D109: 0.003662109375 | E109: 0.00732421875 | F109: 0.008544921875 | G109: 0.01220703125 | H109: 0.0146484375 | I109: 0.01586914062 | J109: 0.01831054688 | K109: 0.01953125 | L109: 0.01953125 | M109: 0.01953125 | N109: 0.01953125 | O109: 0.01953125 | P109: 0.02319335938 | Q109: 0.02685546875 | R109: 0.03540039062 | S109: 0.03173828125 | T109: 0.0390625 | U109: 0.04028320312 | V109: 0.0390625 | W109: 0.04150390625 | X109: 0.04272460938 | Y109: 0.05004882812 | Z109: 0.05126953125 | AA109: 0.05126953125 | AB109: 0.05004882812 | AC109: 0.0537109375 | AD109: 0.05737304688 | AE109: 0.05737304688 | AF109: 0.05859375
A110: 0.84 | B110: 0.09899494937 | C110: 0.00244140625 | D110: 0.00244140625 | E110: 0.006103515625 | F110: 0.00732421875 | G110: 0.009765625 | H110: 0.01342773438 | I110: 0.0146484375 | J110: 0.01831054688 | K110: 0.01953125 | L110: 0.01953125 | M110: 0.01953125 | N110: 0.01953125 | O110: 0.01953125 | P110: 0.02319335938 | Q110: 0.02807617188 | R110: 0.03540039062 | S110: 0.0341796875 | T110: 0.0390625 | U110: 0.0390625 | V110: 0.0390625 | W110: 0.04150390625 | X110: 0.04150390625 | Y110: 0.0439453125 | Z110: 0.05126953125 | AA110: 0.05126953125 | AB110: 0.05249023438 | AC110: 0.05249023438 | AD110: 0.05859375 | AE110: 0.05737304688 | AF110: 0.05859375
A111: 0.85 | B111: 0.1001734607 | C111: 0.0048828125 | D111: 0.00244140625 | E111: 0.006103515625 | F111: 0.00732421875 | G111: 0.01220703125 | H111: 0.01586914062 | I111: 0.01708984375 | J111: 0.01831054688 | K111: 0.01831054688 | L111: 0.01953125 | M111: 0.01953125 | N111: 0.01953125 | O111: 0.01953125 | P111: 0.02197265625 | Q111: 0.0244140625 | R111: 0.03662109375 | S111: 0.03662109375 | T111: 0.03784179688 | U111: 0.04028320312 | V111: 0.0390625 | W111: 0.0390625 | X111: 0.04272460938 | Y111: 0.04638671875 | Z111: 0.05249023438 | AA111: 0.05004882812 | AB111: 0.05249023438 | AC111: 0.05493164062 | AD111: 0.05859375 | AE111: 0.05737304688 | AF111: 0.05859375
A112: 0.86 | B112: 0.101351972 | C112: 0.001220703125 | D112: 0.006103515625 | E112: 0.00732421875 | F112: 0.00732421875 | G112: 0.01220703125 | H112: 0.0146484375 | I112: 0.01586914062 | J112: 0.01831054688 | K112: 0.01831054688 | L112: 0.01953125 | M112: 0.01953125 | N112: 0.01953125 | O112: 0.01953125 | P112: 0.0244140625 | Q112: 0.0244140625 | R112: 0.03662109375 | S112: 0.03295898438 | T112: 0.0390625 | U112: 0.04028320312 | V112: 0.0390625 | W112: 0.04028320312 | X112: 0.0439453125 | Y112: 0.04760742188 | Z112: 0.05126953125 | AA112: 0.048828125 | AB112: 0.05249023438 | AC112: 0.05493164062 | AD112: 0.05737304688 | AE112: 0.05737304688 | AF112: 0.05737304688
A113: 0.87 | B113: 0.1025304833 | C113: 0.003662109375 | D113: 0.003662109375 | E113: 0.006103515625 | F113: 0.0048828125 | G113: 0.009765625 | H113: 0.0146484375 | I113: 0.01342773438 | J113: 0.01953125 | K113: 0.01953125 | L113: 0.01831054688 | M113: 0.01953125 | N113: 0.01953125 | O113: 0.02075195312 | P113: 0.02319335938 | Q113: 0.029296875 | R113: 0.03295898438 | S113: 0.0341796875 | T113: 0.03784179688 | U113: 0.03784179688 | V113: 0.0390625 | W113: 0.04028320312 | X113: 0.04638671875 | Y113: 0.04638671875 | Z113: 0.05004882812 | AA113: 0.05004882812 | AB113: 0.05126953125 | AC113: 0.05493164062 | AD113: 0.05859375 | AE113: 0.05859375 | AF113: 0.05859375
A114: 0.88 | B114: 0.1037089946 | C114: 0.00244140625 | D114: 0.003662109375 | E114: 0.006103515625 | F114: 0.006103515625 | G114: 0.01098632812 | H114: 0.01586914062 | I114: 0.01586914062 | J114: 0.01831054688 | K114: 0.01831054688 | L114: 0.01953125 | M114: 0.01953125 | N114: 0.01953125 | O114: 0.01953125 | P114: 0.02319335938 | Q114: 0.02685546875 | R114: 0.03662109375 | S114: 0.03662109375 | T114: 0.03784179688 | U114: 0.0390625 | V114: 0.04028320312 | W114: 0.0390625 | X114: 0.0439453125 | Y114: 0.04638671875 | Z114: 0.05126953125 | AA114: 0.05004882812 | AB114: 0.05126953125 | AC114: 0.0537109375 | AD114: 0.05737304688 | AE114: 0.05737304688 | AF114: 0.05859375
A115: 0.89 | B115: 0.1048875059 | C115: 0.0048828125 | D115: 0.003662109375 | E115: 0.00732421875 | F115: 0.008544921875 | G115: 0.01220703125 | H115: 0.01586914062 | I115: 0.01586914062 | J115: 0.01831054688 | K115: 0.01831054688 | L115: 0.01953125 | M115: 0.01953125 | N115: 0.01953125 | O115: 0.01953125 | P115: 0.02197265625 | Q115: 0.02807617188 | R115: 0.03662109375 | S115: 0.03540039062 | T115: 0.0390625 | U115: 0.0390625 | V115: 0.0390625 | W115: 0.04028320312 | X115: 0.04516601562 | Y115: 0.04272460938 | Z115: 0.05004882812 | AA115: 0.0537109375 | AB115: 0.05126953125 | AC115: 0.05615234375 | AD115: 0.05737304688 | AE115: 0.05737304688 | AF115: 0.05859375
A116: 0.9 | B116: 0.1060660172 | C116: 0.001220703125 | D116: 0.003662109375 | E116: 0.006103515625 | F116: 0.006103515625 | G116: 0.01098632812 | H116: 0.01586914062 | I116: 0.01586914062 | J116: 0.01831054688 | K116: 0.01831054688 | L116: 0.01953125 | M116: 0.01953125 | N116: 0.01953125 | O116: 0.01953125 | P116: 0.02319335938 | Q116: 0.02807617188 | R116: 0.03540039062 | S116: 0.03540039062 | T116: 0.0390625 | U116: 0.0390625 | V116: 0.04028320312 | W116: 0.04028320312 | X116: 0.04516601562 | Y116: 0.04760742188 | Z116: 0.0537109375 | AA116: 0.05126953125 | AB116: 0.048828125 | AC116: 0.05493164062 | AD116: 0.05737304688 | AE116: 0.05859375 | AF116: 0.05859375
A117: 0.91 | B117: 0.1072445285 | C117: 0.00244140625 | D117: 0.003662109375 | E117: 0.0048828125 | F117: 0.00732421875 | G117: 0.009765625 | H117: 0.0146484375 | I117: 0.01708984375 | J117: 0.01831054688 | K117: 0.01831054688 | L117: 0.01953125 | M117: 0.01953125 | N117: 0.01953125 | O117: 0.02197265625 | P117: 0.02197265625 | Q117: 0.02685546875 | R117: 0.03662109375 | S117: 0.0341796875 | T117: 0.03784179688 | U117: 0.04028320312 | V117: 0.0390625 | W117: 0.04028320312 | X117: 0.04150390625 | Y117: 0.04516601562 | Z117: 0.0537109375 | AA117: 0.05126953125 | AB117: 0.05126953125 | AC117: 0.05493164062 | AD117: 0.05859375 | AE117: 0.05615234375 | AF117: 0.05859375
A118: 0.92 | B118: 0.1084230398 | C118: 0.00244140625 | D118: 0.003662109375 | E118: 0.006103515625 | F118: 0.009765625 | G118: 0.009765625 | H118: 0.01342773438 | I118: 0.01708984375 | J118: 0.01953125 | K118: 0.01953125 | L118: 0.01953125 | M118: 0.01953125 | N118: 0.01953125 | O118: 0.02075195312 | P118: 0.02197265625 | Q118: 0.02563476562 | R118: 0.03540039062 | S118: 0.03295898438 | T118: 0.0390625 | U118: 0.0390625 | V118: 0.0390625 | W118: 0.04150390625 | X118: 0.04272460938 | Y118: 0.04638671875 | Z118: 0.05126953125 | AA118: 0.05004882812 | AB118: 0.05249023438 | AC118: 0.05493164062 | AD118: 0.05737304688 | AE118: 0.05859375 | AF118: 0.05859375
A119: 0.93 | B119: 0.1096015511 | C119: 0.00244140625 | D119: 0.003662109375 | E119: 0.006103515625 | F119: 0.00732421875 | G119: 0.01342773438 | H119: 0.01708984375 | I119: 0.01708984375 | J119: 0.01708984375 | K119: 0.01831054688 | L119: 0.01831054688 | M119: 0.01953125 | N119: 0.01953125 | O119: 0.01953125 | P119: 0.02075195312 | Q119: 0.0244140625 | R119: 0.03540039062 | S119: 0.03295898438 | T119: 0.03784179688 | U119: 0.03784179688 | V119: 0.04028320312 | W119: 0.04028320312 | X119: 0.0439453125 | Y119: 0.04638671875 | Z119: 0.05249023438 | AA119: 0.05126953125 | AB119: 0.05004882812 | AC119: 0.05737304688 | AD119: 0.05737304688 | AE119: 0.05859375 | AF119: 0.05859375
A120: 0.94 | B120: 0.1107800624 | C120: 0 | D120: 0.00244140625 | E120: 0.006103515625 | F120: 0.003662109375 | G120: 0.01098632812 | H120: 0.01342773438 | I120: 0.01708984375 | J120: 0.01831054688 | K120: 0.01953125 | L120: 0.01953125 | M120: 0.01953125 | N120: 0.01953125 | O120: 0.01953125 | P120: 0.02319335938 | Q120: 0.0244140625 | R120: 0.03540039062 | S120: 0.03540039062 | T120: 0.03784179688 | U120: 0.0390625 | V120: 0.0390625 | W120: 0.04028320312 | X120: 0.0439453125 | Y120: 0.04516601562 | Z120: 0.05004882812 | AA120: 0.05004882812 | AB120: 0.05249023438 | AC120: 0.05493164062 | AD120: 0.05859375 | AE120: 0.05737304688 | AF120: 0.05859375
A121: 0.95 | B121: 0.1119585737 | C121: 0.003662109375 | D121: 0.003662109375 | E121: 0.008544921875 | F121: 0.009765625 | G121: 0.0146484375 | H121: 0.01342773438 | I121: 0.01586914062 | J121: 0.01831054688 | K121: 0.01953125 | L121: 0.01953125 | M121: 0.02075195312 | N121: 0.01953125 | O121: 0.02075195312 | P121: 0.0244140625 | Q121: 0.029296875 | R121: 0.03662109375 | S121: 0.03540039062 | T121: 0.0390625 | U121: 0.03662109375 | V121: 0.04028320312 | W121: 0.0390625 | X121: 0.04272460938 | Y121: 0.04516601562 | Z121: 0.05004882812 | AA121: 0.05004882812 | AB121: 0.05126953125 | AC121: 0.05615234375 | AD121: 0.05859375 | AE121: 0.05859375 | AF121: 0.05859375
A122: 0.96 | B122: 0.113137085 | C122: 0.003662109375 | D122: 0.006103515625 | E122: 0.009765625 | F122: 0.006103515625 | G122: 0.009765625 | H122: 0.0146484375 | I122: 0.01586914062 | J122: 0.01831054688 | K122: 0.01953125 | L122: 0.01953125 | M122: 0.01953125 | N122: 0.01953125 | O122: 0.01831054688 | P122: 0.02319335938 | Q122: 0.02563476562 | R122: 0.03662109375 | S122: 0.03295898438 | T122: 0.03784179688 | U122: 0.0390625 | V122: 0.0390625 | W122: 0.04150390625 | X122: 0.0439453125 | Y122: 0.04516601562 | Z122: 0.05126953125 | AA122: 0.05249023438 | AB122: 0.05004882812 | AC122: 0.05493164062 | AD122: 0.05859375 | AE122: 0.05859375 | AF122: 0.05859375
A123: 0.97 | B123: 0.1143155963 | C123: 0.003662109375 | D123: 0.003662109375 | E123: 0.00732421875 | F123: 0.00732421875 | G123: 0.01342773438 | H123: 0.01220703125 | I123: 0.0146484375 | J123: 0.01708984375 | K123: 0.01708984375 | L123: 0.01953125 | M123: 0.01953125 | N123: 0.01953125 | O123: 0.02075195312 | P123: 0.0244140625 | Q123: 0.02563476562 | R123: 0.03540039062 | S123: 0.03295898438 | T123: 0.03784179688 | U123: 0.0390625 | V123: 0.0390625 | W123: 0.04150390625 | X123: 0.04272460938 | Y123: 0.04638671875 | Z123: 0.05004882812 | AA123: 0.05249023438 | AB123: 0.0537109375 | AC123: 0.0537109375 | AD123: 0.05737304688 | AE123: 0.05859375 | AF123: 0.05859375
A124: 0.98 | B124: 0.1154941076 | C124: 0.001220703125 | D124: 0.0048828125 | E124: 0.00732421875 | F124: 0.00732421875 | G124: 0.01220703125 | H124: 0.01342773438 | I124: 0.01708984375 | J124: 0.01953125 | K124: 0.01831054688 | L124: 0.01953125 | M124: 0.01953125 | N124: 0.01953125 | O124: 0.01953125 | P124: 0.02075195312 | Q124: 0.02685546875 | R124: 0.03662109375 | S124: 0.0341796875 | T124: 0.0390625 | U124: 0.0390625 | V124: 0.04028320312 | W124: 0.04272460938 | X124: 0.04272460938 | Y124: 0.04638671875 | Z124: 0.05249023438 | AA124: 0.05004882812 | AB124: 0.05126953125 | AC124: 0.0537109375 | AD124: 0.05859375 | AE124: 0.05859375 | AF124: 0.05859375
A125: 0.99 | B125: 0.1166726189 | C125: 0.001220703125 | D125: 0.003662109375 | E125: 0.008544921875 | F125: 0.008544921875 | G125: 0.01220703125 | H125: 0.01220703125 | I125: 0.01586914062 | J125: 0.01953125 | K125: 0.01831054688 | L125: 0.01953125 | M125: 0.01831054688 | N125: 0.01953125 | O125: 0.01953125 | P125: 0.02319335938 | Q125: 0.02563476562 | R125: 0.03662109375 | S125: 0.03295898438 | T125: 0.03784179688 | U125: 0.0390625 | V125: 0.0390625 | W125: 0.04150390625 | X125: 0.0439453125 | Y125: 0.04638671875 | Z125: 0.05249023438 | AA125: 0.05126953125 | AB125: 0.05249023438 | AC125: 0.0537109375 | AD125: 0.05859375 | AE125: 0.05859375 | AF125: 0.05859375
A126: 1 | B126: 0.1178511302 | C126: 0.001220703125 | D126: 0.003662109375 | E126: 0.0048828125 | F126: 0.006103515625 | G126: 0.01098632812 | H126: 0.0146484375 | I126: 0.01708984375 | J126: 0.01831054688 | K126: 0.01953125 | L126: 0.01953125 | M126: 0.01953125 | N126: 0.01953125 | O126: 0.02075195312 | P126: 0.02563476562 | Q126: 0.02319335938 | R126: 0.03662109375 | S126: 0.03295898438 | T126: 0.0390625 | U126: 0.0390625 | V126: 0.04028320312 | W126: 0.04150390625 | X126: 0.04272460938 | Y126: 0.04272460938 | Z126: 0.05126953125 | AA126: 0.05004882812 | AB126: 0.05249023438 | AC126: 0.05249023438 | AD126: 0.05859375 | AE126: 0.05737304688 | AF126: 0.05859375
A127: 1.01 | B127: 0.1190296415 | C127: 0 | D127: 0.00732421875 | E127: 0.006103515625 | F127: 0.0048828125 | G127: 0.0146484375 | H127: 0.01220703125 | I127: 0.01708984375 | J127: 0.01831054688 | K127: 0.01953125 | L127: 0.01831054688 | M127: 0.01953125 | N127: 0.01953125 | O127: 0.01953125 | P127: 0.02319335938 | Q127: 0.0244140625 | R127: 0.03540039062 | S127: 0.0341796875 | T127: 0.03784179688 | U127: 0.03784179688 | V127: 0.04028320312 | W127: 0.04150390625 | X127: 0.04272460938 | Y127: 0.04638671875 | Z127: 0.05249023438 | AA127: 0.05126953125 | AB127: 0.0537109375 | AC127: 0.05615234375 | AD127: 0.05859375 | AE127: 0.05737304688 | AF127: 0.05859375
A128: 1.02 | B128: 0.1202081528 | C128: 0.001220703125 | D128: 0.003662109375 | E128: 0.00732421875 | F128: 0.008544921875 | G128: 0.01342773438 | H128: 0.01098632812 | I128: 0.01831054688 | J128: 0.01831054688 | K128: 0.01953125 | L128: 0.01953125 | M128: 0.01953125 | N128: 0.01953125 | O128: 0.02075195312 | P128: 0.02319335938 | Q128: 0.02563476562 | R128: 0.03662109375 | S128: 0.03540039062 | T128: 0.03784179688 | U128: 0.0390625 | V128: 0.04028320312 | W128: 0.04028320312 | X128: 0.04272460938 | Y128: 0.04760742188 | Z128: 0.05249023438 | AA128: 0.05126953125 | AB128: 0.05493164062 | AC128: 0.05737304688 | AD128: 0.05737304688 | AE128: 0.05859375 | AF128: 0.05859375
A129: 1.03 | B129: 0.1213866641 | C129: 0.00244140625 | D129: 0.003662109375 | E129: 0.00732421875 | F129: 0.006103515625 | G129: 0.01342773438 | H129: 0.01342773438 | I129: 0.01831054688 | J129: 0.01831054688 | K129: 0.01953125 | L129: 0.01953125 | M129: 0.01953125 | N129: 0.01953125 | O129: 0.01953125 | P129: 0.02197265625 | Q129: 0.02563476562 | R129: 0.03784179688 | S129: 0.0341796875 | T129: 0.0390625 | U129: 0.0390625 | V129: 0.0390625 | W129: 0.04028320312 | X129: 0.04516601562 | Y129: 0.04516601562 | Z129: 0.0537109375 | AA129: 0.05004882812 | AB129: 0.05249023438 | AC129: 0.05615234375 | AD129: 0.05859375 | AE129: 0.05737304688 | AF129: 0.05859375
A130: 1.04 | B130: 0.1225651754 | C130: 0.00244140625 | D130: 0.0048828125 | E130: 0.009765625 | F130: 0.00732421875 | G130: 0.01098632812 | H130: 0.0146484375 | I130: 0.01342773438 | J130: 0.01953125 | K130: 0.01831054688 | L130: 0.01953125 | M130: 0.01953125 | N130: 0.01953125 | O130: 0.02075195312 | P130: 0.02319335938 | Q130: 0.02563476562 | R130: 0.03784179688 | S130: 0.03295898438 | T130: 0.0390625 | U130: 0.0390625 | V130: 0.04028320312 | W130: 0.04150390625 | X130: 0.0439453125 | Y130: 0.0439453125 | Z130: 0.05249023438 | AA130: 0.048828125 | AB130: 0.05249023438 | AC130: 0.05493164062 | AD130: 0.05859375 | AE130: 0.05859375 | AF130: 0.05859375
A131: 1.05 | B131: 0.1237436867 | C131: 0 | D131: 0.003662109375 | E131: 0.006103515625 | F131: 0.006103515625 | G131: 0.009765625 | H131: 0.01342773438 | I131: 0.01708984375 | J131: 0.01708984375 | K131: 0.01831054688 | L131: 0.01953125 | M131: 0.01953125 | N131: 0.01831054688 | O131: 0.01953125 | P131: 0.02197265625 | Q131: 0.02563476562 | R131: 0.03540039062 | S131: 0.0341796875 | T131: 0.03784179688 | U131: 0.0390625 | V131: 0.04028320312 | W131: 0.0390625 | X131: 0.04516601562 | Y131: 0.04638671875 | Z131: 0.05126953125 | AA131: 0.0537109375 | AB131: 0.05249023438 | AC131: 0.05493164062 | AD131: 0.05859375 | AE131: 0.05859375 | AF131: 0.05859375
A132: 1.06 | B132: 0.124922198 | C132: 0.0048828125 | D132: 0.006103515625 | E132: 0.0048828125 | F132: 0.009765625 | G132: 0.01220703125 | H132: 0.0146484375 | I132: 0.01831054688 | J132: 0.01708984375 | K132: 0.01831054688 | L132: 0.01953125 | M132: 0.01953125 | N132: 0.01953125 | O132: 0.01953125 | P132: 0.0244140625 | Q132: 0.02685546875 | R132: 0.03540039062 | S132: 0.03173828125 | T132: 0.03784179688 | U132: 0.0390625 | V132: 0.0390625 | W132: 0.04150390625 | X132: 0.04272460938 | Y132: 0.04638671875 | Z132: 0.05126953125 | AA132: 0.05249023438 | AB132: 0.05493164062 | AC132: 0.05249023438 | AD132: 0.05615234375 | AE132: 0.05737304688 | AF132: 0.05859375
A133: 1.07 | B133: 0.1261007093 | C133: 0.003662109375 | D133: 0.0048828125 | E133: 0.0048828125 | F133: 0.00732421875 | G133: 0.01220703125 | H133: 0.01342773438 | I133: 0.01586914062 | J133: 0.01708984375 | K133: 0.01953125 | L133: 0.01831054688 | M133: 0.01953125 | N133: 0.01953125 | O133: 0.02075195312 | P133: 0.02197265625 | Q133: 0.02319335938 | R133: 0.03540039062 | S133: 0.0341796875 | T133: 0.03784179688 | U133: 0.0390625 | V133: 0.0390625 | W133: 0.04150390625 | X133: 0.04516601562 | Y133: 0.04638671875 | Z133: 0.05249023438 | AA133: 0.048828125 | AB133: 0.05493164062 | AC133: 0.05615234375 | AD133: 0.05737304688 | AE133: 0.05859375 | AF133: 0.05737304688
A134: 1.08 | B134: 0.1272792206 | C134: 0.003662109375 | D134: 0.0048828125 | E134: 0.00732421875 | F134: 0.00732421875 | G134: 0.01342773438 | H134: 0.0146484375 | I134: 0.01586914062 | J134: 0.01953125 | K134: 0.01953125 | L134: 0.01953125 | M134: 0.01953125 | N134: 0.01953125 | O134: 0.01831054688 | P134: 0.02197265625 | Q134: 0.02563476562 | R134: 0.03784179688 | S134: 0.03662109375 | T134: 0.03784179688 | U134: 0.0390625 | V134: 0.04028320312 | W134: 0.04150390625 | X134: 0.04272460938 | Y134: 0.04638671875 | Z134: 0.05126953125 | AA134: 0.048828125 | AB134: 0.05249023438 | AC134: 0.05859375 | AD134: 0.05859375 | AE134: 0.05737304688 | AF134: 0.05859375
A135: 1.09 | B135: 0.1284577319 | C135: 0.003662109375 | D135: 0.001220703125 | E135: 0.006103515625 | F135: 0.006103515625 | G135: 0.01220703125 | H135: 0.0146484375 | I135: 0.01831054688 | J135: 0.01953125 | K135: 0.01831054688 | L135: 0.01953125 | M135: 0.01953125 | N135: 0.01953125 | O135: 0.01953125 | P135: 0.02075195312 | Q135: 0.02807617188 | R135: 0.03784179688 | S135: 0.0341796875 | T135: 0.03784179688 | U135: 0.0390625 | V135: 0.0390625 | W135: 0.04150390625 | X135: 0.04638671875 | Y135: 0.04760742188 | Z135: 0.0537109375 | AA135: 0.05126953125 | AB135: 0.05249023438 | AC135: 0.0537109375 | AD135: 0.05615234375 | AE135: 0.05859375 | AF135: 0.05859375
A136: 1.1 | B136: 0.1296362432 | C136: 0.00244140625 | D136: 0.00244140625 | E136: 0.006103515625 | F136: 0.00732421875 | G136: 0.01342773438 | H136: 0.0146484375 | I136: 0.01831054688 | J136: 0.01831054688 | K136: 0.01831054688 | L136: 0.01953125 | M136: 0.01953125 | N136: 0.01953125 | O136: 0.02075195312 | P136: 0.0244140625 | Q136: 0.02563476562 | R136: 0.03662109375 | S136: 0.03540039062 | T136: 0.0390625 | U136: 0.0390625 | V136: 0.0390625 | W136: 0.04028320312 | X136: 0.04272460938 | Y136: 0.04760742188 | Z136: 0.0537109375 | AA136: 0.05126953125 | AB136: 0.05004882812 | AC136: 0.05615234375 | AD136: 0.05737304688 | AE136: 0.05737304688 | AF136: 0.05859375
A137: 1.11 | B137: 0.1308147545 | C137: 0.003662109375 | D137: 0.0048828125 | E137: 0.006103515625 | F137: 0.00732421875 | G137: 0.01220703125 | H137: 0.0146484375 | I137: 0.01708984375 | J137: 0.01831054688 | K137: 0.01953125 | L137: 0.01953125 | M137: 0.01953125 | N137: 0.01953125 | O137: 0.01953125 | P137: 0.0244140625 | Q137: 0.02563476562 | R137: 0.03662109375 | S137: 0.03295898438 | T137: 0.03784179688 | U137: 0.0390625 | V137: 0.0390625 | W137: 0.04028320312 | X137: 0.04028320312 | Y137: 0.04638671875 | Z137: 0.0537109375 | AA137: 0.05126953125 | AB137: 0.05615234375 | AC137: 0.05615234375 | AD137: 0.05859375 | AE137: 0.05737304688 | AF137: 0.05859375
A138: 1.12 | B138: 0.1319932658 | C138: 0.00244140625 | D138: 0.006103515625 | E138: 0.0048828125 | F138: 0.00732421875 | G138: 0.01098632812 | H138: 0.0146484375 | I138: 0.01708984375 | J138: 0.01831054688 | K138: 0.01953125 | L138: 0.01953125 | M138: 0.01953125 | N138: 0.01953125 | O138: 0.02075195312 | P138: 0.02319335938 | Q138: 0.0244140625 | R138: 0.0341796875 | S138: 0.03540039062 | T138: 0.03784179688 | U138: 0.0390625 | V138: 0.0390625 | W138: 0.04150390625 | X138: 0.04272460938 | Y138: 0.04760742188 | Z138: 0.05249023438 | AA138: 0.05126953125 | AB138: 0.05249023438 | AC138: 0.05615234375 | AD138: 0.05615234375 | AE138: 0.05859375 | AF138: 0.05859375
A139: 1.13 | B139: 0.1331717771 | C139: 0.00244140625 | D139: 0.0048828125 | E139: 0.006103515625 | F139: 0.00732421875 | G139: 0.01098632812 | H139: 0.0146484375 | I139: 0.01586914062 | J139: 0.01708984375 | K139: 0.01953125 | L139: 0.01831054688 | M139: 0.01953125 | N139: 0.01953125 | O139: 0.01953125 | P139: 0.02319335938 | Q139: 0.02563476562 | R139: 0.03540039062 | S139: 0.0341796875 | T139: 0.0390625 | U139: 0.0390625 | V139: 0.0390625 | W139: 0.04272460938 | X139: 0.04028320312 | Y139: 0.04760742188 | Z139: 0.05126953125 | AA139: 0.048828125 | AB139: 0.05615234375 | AC139: 0.05615234375 | AD139: 0.05859375 | AE139: 0.05737304688 | AF139: 0.05859375
A140: 1.14 | B140: 0.1343502884 | C140: 0.00244140625 | D140: 0.0048828125 | E140: 0.006103515625 | F140: 0.00732421875 | G140: 0.01220703125 | H140: 0.0146484375 | I140: 0.01708984375 | J140: 0.01831054688 | K140: 0.01953125 | L140: 0.01953125 | M140: 0.01953125 | N140: 0.01953125 | O140: 0.01953125 | P140: 0.02197265625 | Q140: 0.02807617188 | R140: 0.03540039062 | S140: 0.0341796875 | T140: 0.0390625 | U140: 0.0390625 | V140: 0.0390625 | W140: 0.04272460938 | X140: 0.04272460938 | Y140: 0.04638671875 | Z140: 0.05493164062 | AA140: 0.05126953125 | AB140: 0.05004882812 | AC140: 0.05493164062 | AD140: 0.05737304688 | AE140: 0.05859375 | AF140: 0.05859375
A141: 1.15 | B141: 0.1355287997 | C141: 0.001220703125 | D141: 0.0048828125 | E141: 0.0048828125 | F141: 0.00732421875 | G141: 0.0146484375 | H141: 0.01586914062 | I141: 0.01708984375 | J141: 0.01586914062 | K141: 0.01953125 | L141: 0.01953125 | M141: 0.01953125 | N141: 0.02075195312 | O141: 0.02075195312 | P141: 0.02319335938 | Q141: 0.02685546875 | R141: 0.03784179688 | S141: 0.03173828125 | T141: 0.0390625 | U141: 0.0390625 | V141: 0.0390625 | W141: 0.04028320312 | X141: 0.04516601562 | Y141: 0.04638671875 | Z141: 0.05249023438 | AA141: 0.048828125 | AB141: 0.05249023438 | AC141: 0.0537109375 | AD141: 0.05859375 | AE141: 0.05859375 | AF141: 0.05859375
A142: 1.16 | B142: 0.136707311 | C142: 0 | D142: 0.003662109375 | E142: 0.0048828125 | F142: 0.008544921875 | G142: 0.01220703125 | H142: 0.01098632812 | I142: 0.01708984375 | J142: 0.01708984375 | K142: 0.01953125 | L142: 0.01953125 | M142: 0.01953125 | N142: 0.01953125 | O142: 0.02075195312 | P142: 0.02197265625 | Q142: 0.02807617188 | R142: 0.03662109375 | S142: 0.03295898438 | T142: 0.03662109375 | U142: 0.0390625 | V142: 0.0390625 | W142: 0.04150390625 | X142: 0.0439453125 | Y142: 0.048828125 | Z142: 0.05126953125 | AA142: 0.05126953125 | AB142: 0.05493164062 | AC142: 0.05615234375 | AD142: 0.05737304688 | AE142: 0.05859375 | AF142: 0.05737304688
A143: 1.17 | B143: 0.1378858223 | C143: 0.00244140625 | D143: 0.003662109375 | E143: 0.0048828125 | F143: 0.008544921875 | G143: 0.01220703125 | H143: 0.01342773438 | I143: 0.01708984375 | J143: 0.01586914062 | K143: 0.01953125 | L143: 0.01953125 | M143: 0.01953125 | N143: 0.01953125 | O143: 0.02075195312 | P143: 0.02319335938 | Q143: 0.0244140625 | R143: 0.03295898438 | S143: 0.03540039062 | T143: 0.03784179688 | U143: 0.0390625 | V143: 0.04028320312 | W143: 0.0390625 | X143: 0.04150390625 | Y143: 0.048828125 | Z143: 0.05249023438 | AA143: 0.0537109375 | AB143: 0.05249023438 | AC143: 0.05615234375 | AD143: 0.05737304688 | AE143: 0.05859375 | AF143: 0.05859375
A144: 1.18 | B144: 0.1390643336 | C144: 0.00244140625 | D144: 0.0048828125 | E144: 0.00732421875 | F144: 0.006103515625 | G144: 0.01098632812 | H144: 0.0146484375 | I144: 0.01708984375 | J144: 0.01831054688 | K144: 0.01953125 | L144: 0.01953125 | M144: 0.01953125 | N144: 0.02075195312 | O144: 0.01953125 | P144: 0.02075195312 | Q144: 0.02685546875 | R144: 0.03784179688 | S144: 0.0341796875 | T144: 0.0390625 | U144: 0.0390625 | V144: 0.04028320312 | W144: 0.0390625 | X144: 0.04516601562 | Y144: 0.04638671875 | Z144: 0.05126953125 | AA144: 0.05249023438 | AB144: 0.0537109375 | AC144: 0.0537109375 | AD144: 0.05615234375 | AE144: 0.05859375 | AF144: 0.05859375
A145: 1.19 | B145: 0.1402428449 | C145: 0.001220703125 | D145: 0.0048828125 | E145: 0.00732421875 | F145: 0.00732421875 | G145: 0.01220703125 | H145: 0.01220703125 | I145: 0.01708984375 | J145: 0.01953125 | K145: 0.01831054688 | L145: 0.01953125 | M145: 0.01831054688 | N145: 0.01953125 | O145: 0.02075195312 | P145: 0.02197265625 | Q145: 0.02563476562 | R145: 0.03662109375 | S145: 0.0341796875 | T145: 0.03784179688 | U145: 0.0390625 | V145: 0.0390625 | W145: 0.04150390625 | X145: 0.0439453125 | Y145: 0.04638671875 | Z145: 0.05126953125 | AA145: 0.05249023438 | AB145: 0.05493164062 | AC145: 0.05493164062 | AD145: 0.05737304688 | AE145: 0.05737304688 | AF145: 0.05859375
A146: 1.2 | B146: 0.1414213562 | C146: 0.001220703125 | D146: 0.003662109375 | E146: 0.006103515625 | F146: 0.0048828125 | G146: 0.01220703125 | H146: 0.0146484375 | I146: 0.01708984375 | J146: 0.01708984375 | K146: 0.01953125 | L146: 0.01953125 | M146: 0.01953125 | N146: 0.01953125 | O146: 0.01953125 | P146: 0.02197265625 | Q146: 0.02685546875 | R146: 0.03662109375 | S146: 0.0341796875 | T146: 0.04028320312 | U146: 0.03784179688 | V146: 0.04028320312 | W146: 0.04150390625 | X146: 0.04272460938 | Y146: 0.04516601562 | Z146: 0.05126953125 | AA146: 0.05126953125 | AB146: 0.05249023438 | AC146: 0.05493164062 | AD146: 0.05737304688 | AE146: 0.05859375 | AF146: 0.05859375
A147: 1.21 | B147: 0.1425998675 | C147: 0.00244140625 | D147: 0.006103515625 | E147: 0.00732421875 | F147: 0.00732421875 | G147: 0.01220703125 | H147: 0.01220703125 | I147: 0.01586914062 | J147: 0.01708984375 | K147: 0.01953125 | L147: 0.01953125 | M147: 0.01953125 | N147: 0.02075195312 | O147: 0.01953125 | P147: 0.02075195312 | Q147: 0.02319335938 | R147: 0.03540039062 | S147: 0.03173828125 | T147: 0.0390625 | U147: 0.0390625 | V147: 0.03784179688 | W147: 0.04028320312 | X147: 0.0439453125 | Y147: 0.04638671875 | Z147: 0.0537109375 | AA147: 0.05004882812 | AB147: 0.05126953125 | AC147: 0.05493164062 | AD147: 0.05859375 | AE147: 0.05737304688 | AF147: 0.05859375
A148: 1.22 | B148: 0.1437783788 | C148: 0.00244140625 | D148: 0.003662109375 | E148: 0.00732421875 | F148: 0.008544921875 | G148: 0.01342773438 | H148: 0.01098632812 | I148: 0.01586914062 | J148: 0.01831054688 | K148: 0.01953125 | L148: 0.01953125 | M148: 0.01953125 | N148: 0.02075195312 | O148: 0.01953125 | P148: 0.02197265625 | Q148: 0.02563476562 | R148: 0.03540039062 | S148: 0.0341796875 | T148: 0.04028320312 | U148: 0.0390625 | V148: 0.04028320312 | W148: 0.04150390625 | X148: 0.04150390625 | Y148: 0.04638671875 | Z148: 0.05004882812 | AA148: 0.05126953125 | AB148: 0.0537109375 | AC148: 0.05493164062 | AD148: 0.05737304688 | AE148: 0.05737304688 | AF148: 0.05859375
A149: 1.23 | B149: 0.1449568901 | C149: 0.001220703125 | D149: 0.0048828125 | E149: 0.00732421875 | F149: 0.0048828125 | G149: 0.01098632812 | H149: 0.01220703125 | I149: 0.01708984375 | J149: 0.01708984375 | K149: 0.01953125 | L149: 0.01953125 | M149: 0.01953125 | N149: 0.01953125 | O149: 0.01953125 | P149: 0.02075195312 | Q149: 0.0244140625 | R149: 0.03662109375 | S149: 0.03295898438 | T149: 0.0390625 | U149: 0.0390625 | V149: 0.04028320312 | W149: 0.04028320312 | X149: 0.0439453125 | Y149: 0.04760742188 | Z149: 0.05249023438 | AA149: 0.05126953125 | AB149: 0.0537109375 | AC149: 0.05493164062 | AD149: 0.05737304688 | AE149: 0.05859375 | AF149: 0.05859375
A150: 1.24 | B150: 0.1461354014 | C150: 0.00244140625 | D150: 0.0048828125 | E150: 0.00732421875 | F150: 0.01098632812 | G150: 0.01220703125 | H150: 0.01220703125 | I150: 0.01708984375 | J150: 0.01831054688 | K150: 0.01831054688 | L150: 0.01953125 | M150: 0.01953125 | N150: 0.01953125 | O150: 0.02075195312 | P150: 0.0244140625 | Q150: 0.02807617188 | R150: 0.03784179688 | S150: 0.03662109375 | T150: 0.0390625 | U150: 0.0390625 | V150: 0.0390625 | W150: 0.04150390625 | X150: 0.04516601562 | Y150: 0.04638671875 | Z150: 0.05126953125 | AA150: 0.05249023438 | AB150: 0.0537109375 | AC150: 0.0537109375 | AD150: 0.05859375 | AE150: 0.05737304688 | AF150: 0.05859375
A151: 1.25 | B151: 0.1473139127 | C151: 0.00244140625 | D151: 0.0048828125 | E151: 0.006103515625 | F151: 0.00732421875 | G151: 0.01342773438 | H151: 0.0146484375 | I151: 0.01953125 | J151: 0.01953125 | K151: 0.01831054688 | L151: 0.01953125 | M151: 0.01953125 | N151: 0.02075195312 | O151: 0.02075195312 | P151: 0.02197265625 | Q151: 0.02685546875 | R151: 0.03662109375 | S151: 0.03540039062 | T151: 0.0390625 | U151: 0.03784179688 | V151: 0.04028320312 | W151: 0.04150390625 | X151: 0.0439453125 | Y151: 0.04638671875 | Z151: 0.05004882812 | AA151: 0.05004882812 | AB151: 0.0537109375 | AC151: 0.05615234375 | AD151: 0.05737304688 | AE151: 0.05737304688 | AF151: 0.05859375
A152: 1.26 | B152: 0.148492424 | C152: 0.001220703125 | D152: 0.00244140625 | E152: 0.0048828125 | F152: 0.006103515625 | G152: 0.01220703125 | H152: 0.01342773438 | I152: 0.01831054688 | J152: 0.01708984375 | K152: 0.01953125 | L152: 0.01953125 | M152: 0.01953125 | N152: 0.01953125 | O152: 0.02075195312 | P152: 0.02319335938 | Q152: 0.02685546875 | R152: 0.03540039062 | S152: 0.03662109375 | T152: 0.03662109375 | U152: 0.03784179688 | V152: 0.04028320312 | W152: 0.04272460938 | X152: 0.0439453125 | Y152: 0.04516601562 | Z152: 0.05004882812 | AA152: 0.05004882812 | AB152: 0.05126953125 | AC152: 0.05493164062 | AD152: 0.05737304688 | AE152: 0.05859375 | AF152: 0.05859375
A153: 1.27 | B153: 0.1496709354 | C153: 0.00244140625 | D153: 0.00732421875 | E153: 0.0048828125 | F153: 0.006103515625 | G153: 0.01098632812 | H153: 0.01098632812 | I153: 0.01831054688 | J153: 0.01708984375 | K153: 0.01953125 | L153: 0.01953125 | M153: 0.01953125 | N153: 0.01953125 | O153: 0.01953125 | P153: 0.02197265625 | Q153: 0.02685546875 | R153: 0.03784179688 | S153: 0.03540039062 | T153: 0.0390625 | U153: 0.0390625 | V153: 0.0390625 | W153: 0.04028320312 | X153: 0.0439453125 | Y153: 0.04638671875 | Z153: 0.05004882812 | AA153: 0.04760742188 | AB153: 0.05126953125 | AC153: 0.05615234375 | AD153: 0.05737304688 | AE153: 0.05737304688 | AF153: 0.05737304688
A154: 1.28 | B154: 0.1508494467 | C154: 0.001220703125 | D154: 0.003662109375 | E154: 0.003662109375 | F154: 0.00732421875 | G154: 0.01220703125 | H154: 0.0146484375 | I154: 0.01586914062 | J154: 0.01831054688 | K154: 0.01953125 | L154: 0.01953125 | M154: 0.01953125 | N154: 0.01953125 | O154: 0.02075195312 | P154: 0.02319335938 | Q154: 0.02319335938 | R154: 0.03784179688 | S154: 0.0341796875 | T154: 0.0390625 | U154: 0.0390625 | V154: 0.04150390625 | W154: 0.04028320312 | X154: 0.04028320312 | Y154: 0.04638671875 | Z154: 0.0537109375 | AA154: 0.04760742188 | AB154: 0.0537109375 | AC154: 0.05493164062 | AD154: 0.05737304688 | AE154: 0.05737304688 | AF154: 0.05737304688
A155: 1.29 | B155: 0.152027958 | C155: 0.001220703125 | D155: 0.003662109375 | E155: 0.0048828125 | F155: 0.00732421875 | G155: 0.01098632812 | H155: 0.0146484375 | I155: 0.01831054688 | J155: 0.01831054688 | K155: 0.01708984375 | L155: 0.01953125 | M155: 0.01953125 | N155: 0.01953125 | O155: 0.02197265625 | P155: 0.02563476562 | Q155: 0.02685546875 | R155: 0.03540039062 | S155: 0.03173828125 | T155: 0.0390625 | U155: 0.03784179688 | V155: 0.04028320312 | W155: 0.0390625 | X155: 0.04150390625 | Y155: 0.04516601562 | Z155: 0.05126953125 | AA155: 0.05126953125 | AB155: 0.0537109375 | AC155: 0.05493164062 | AD155: 0.05859375 | AE155: 0.05859375 | AF155: 0.05859375
A156: 1.3 | B156: 0.1532064693 | C156: 0.001220703125 | D156: 0.003662109375 | E156: 0.006103515625 | F156: 0.009765625 | G156: 0.0146484375 | H156: 0.01342773438 | I156: 0.01708984375 | J156: 0.01831054688 | K156: 0.01831054688 | L156: 0.01953125 | M156: 0.01953125 | N156: 0.01953125 | O156: 0.02075195312 | P156: 0.02197265625 | Q156: 0.02685546875 | R156: 0.03540039062 | S156: 0.03173828125 | T156: 0.03784179688 | U156: 0.0390625 | V156: 0.0390625 | W156: 0.04028320312 | X156: 0.04272460938 | Y156: 0.04760742188 | Z156: 0.0537109375 | AA156: 0.05249023438 | AB156: 0.0537109375 | AC156: 0.05615234375 | AD156: 0.05737304688 | AE156: 0.05737304688 | AF156: 0.05859375
A157: 1.31 | B157: =(A157*SQRT(50))/60 -> 0.1543849806 | C157: 0.001220703125 | D157: 0.00244140625 | E157: 0.00732421875 | F157: 0.006103515625 | G157: 0.0146484375 | H157: 0.01342773438 | I157: 0.01586914062 | J157: 0.01953125 | K157: 0.01831054688 | L157: 0.01953125 | M157: 0.01953125 | N157: 0.01953125 | O157: 0.01953125 | P157: 0.0244140625 | Q157: 0.02563476562 | R157: 0.03540039062 | S157: 0.0341796875 | T157: 0.03662109375 | U157: 0.03784179688 | V157: 0.04028320312 | W157: 0.04272460938 | X157: 0.04272460938 | Y157: 0.04638671875 | Z157: 0.05004882812 | AA157: 0.05249023438 | AB157: 0.05249023438 | AC157: 0.05615234375 | AD157: 0.05615234375 | AE157: 0.05737304688 | AF157: 0.05859375
A158: 1.32 | B158: 0.1555634919 | C158: 0.001220703125 | D158: 0.003662109375 | E158: 0.0048828125 | F158: 0.00732421875 | G158: 0.01098632812 | H158: 0.01220703125 | I158: 0.01586914062 | J158: 0.01586914062 | K158: 0.01953125 | L158: 0.01953125 | M158: 0.01953125 | N158: 0.01953125 | O158: 0.01953125 | P158: 0.02319335938 | Q158: 0.02685546875 | R158: 0.03662109375 | S158: 0.03295898438 | T158: 0.0390625 | U158: 0.0390625 | V158: 0.04028320312 | W158: 0.04150390625 | X158: 0.04516601562 | Y158: 0.04516601562 | Z158: 0.0537109375 | AA158: 0.0537109375 | AB158: 0.0537109375 | AC158: 0.0537109375 | AD158: 0.05615234375 | AE158: 0.05737304688 | AF158: 0.05859375
A159: 1.33 | B159: 0.1567420032 | C159: 0.001220703125 | D159: 0.0048828125 | E159: 0.006103515625 | F159: 0.008544921875 | G159: 0.01098632812 | H159: 0.01708984375 | I159: 0.0146484375 | J159: 0.01831054688 | K159: 0.01831054688 | L159: 0.01953125 | M159: 0.01953125 | N159: 0.02075195312 | O159: 0.02075195312 | P159: 0.02197265625 | Q159: 0.02685546875 | R159: 0.03540039062 | S159: 0.03662109375 | T159: 0.0390625 | U159: 0.03784179688 | V159: 0.0390625 | W159: 0.04028320312 | X159: 0.0439453125 | Y159: 0.04638671875 | Z159: 0.05249023438 | AA159: 0.05004882812 | AB159: 0.0537109375 | AC159: 0.05493164062 | AD159: 0.05737304688 | AE159: 0.05737304688 | AF159: 0.05859375
A160: 1.34 | B160: 0.1579205145 | C160: 0.001220703125 | D160: 0.00244140625 | E160: 0.003662109375 | F160: 0.006103515625 | G160: 0.01220703125 | H160: 0.01342773438 | I160: 0.01708984375 | J160: 0.01831054688 | K160: 0.01831054688 | L160: 0.01953125 | M160: 0.01953125 | N160: 0.01953125 | O160: 0.02075195312 | P160: 0.02319335938 | Q160: 0.0244140625 | R160: 0.03784179688 | S160: 0.0341796875 | T160: 0.0390625 | U160: 0.0390625 | V160: 0.03784179688 | W160: 0.0390625 | X160: 0.04150390625 | Y160: 0.04638671875 | Z160: 0.05126953125 | AA160: 0.05126953125 | AB160: 0.05493164062 | AC160: 0.05493164062 | AD160: 0.05737304688 | AE160: 0.05737304688 | AF160: 0.05737304688
A161: 1.35 | B161: 0.1590990258 | C161: 0.001220703125 | D161: 0.003662109375 | E161: 0.00244140625 | F161: 0.006103515625 | G161: 0.0146484375 | H161: 0.01342773438 | I161: 0.01831054688 | J161: 0.01831054688 | K161: 0.01831054688 | L161: 0.01953125 | M161: 0.01953125 | N161: 0.01953125 | O161: 0.02075195312 | P161: 0.02197265625 | Q161: 0.02563476562 | R161: 0.03662109375 | S161: 0.03295898438 | T161: 0.03784179688 | U161: 0.03784179688 | V161: 0.0390625 | W161: 0.04272460938 | X161: 0.04272460938 | Y161: 0.04760742188 | Z161: 0.05004882812 | AA161: 0.05004882812 | AB161: 0.05493164062 | AC161: 0.05615234375 | AD161: 0.05859375 | AE161: 0.05737304688 | AF161: 0.05859375
A162: 1.36 | B162: 0.1602775371 | C162: 0.00244140625 | D162: 0.003662109375 | E162: 0.006103515625 | F162: 0.00732421875 | G162: 0.01220703125 | H162: 0.01342773438 | I162: 0.01708984375 | J162: 0.01831054688 | K162: 0.01953125 | L162: 0.01953125 | M162: 0.01953125 | N162: 0.01953125 | O162: 0.01953125 | P162: 0.02197265625 | Q162: 0.02319335938 | R162: 0.03784179688 | S162: 0.03295898438 | T162: 0.03784179688 | U162: 0.0390625 | V162: 0.0390625 | W162: 0.04028320312 | X162: 0.04150390625 | Y162: 0.04516601562 | Z162: 0.05249023438 | AA162: 0.05004882812 | AB162: 0.05615234375 | AC162: 0.05493164062 | AD162: 0.05737304688 | AE162: 0.05737304688 | AF162: 0.05859375
A163: 1.37 | B163: 0.1614560484 | C163: 0.003662109375 | D163: 0.00244140625 | E163: 0.00732421875 | F163: 0.006103515625 | G163: 0.01220703125 | H163: 0.0146484375 | I163: 0.01342773438 | J163: 0.01831054688 | K163: 0.01831054688 | L163: 0.01953125 | M163: 0.01953125 | N163: 0.01953125 | O163: 0.02075195312 | P163: 0.02197265625 | Q163: 0.02319335938 | R163: 0.03662109375 | S163: 0.03173828125 | T163: 0.03784179688 | U163: 0.0390625 | V163: 0.04028320312 | W163: 0.04150390625 | X163: 0.04272460938 | Y163: 0.048828125 | Z163: 0.05126953125 | AA163: 0.048828125 | AB163: 0.0537109375 | AC163: 0.0537109375 | AD163: 0.05615234375 | AE163: 0.05737304688 | AF163: 0.05859375
A164: 1.38 | B164: 0.1626345597 | C164: 0.00244140625 | D164: 0.0048828125 | E164: 0.006103515625 | F164: 0.006103515625 | G164: 0.009765625 | H164: 0.01342773438 | I164: 0.01586914062 | J164: 0.01831054688 | K164: 0.01831054688 | L164: 0.01953125 | M164: 0.01953125 | N164: 0.01953125 | O164: 0.02075195312 | P164: 0.02197265625 | Q164: 0.02563476562 | R164: 0.03540039062 | S164: 0.0341796875 | T164: 0.0390625 | U164: 0.0390625 | V164: 0.0390625 | W164: 0.04028320312 | X164: 0.0439453125 | Y164: 0.048828125 | Z164: 0.05249023438 | AA164: 0.05004882812 | AB164: 0.05493164062 | AC164: 0.05615234375 | AD164: 0.05737304688 | AE164: 0.05737304688 | AF164: 0.05981445312
A165: 1.39 | B165: 0.163813071 | C165: 0.00244140625 | D165: 0.00732421875 | E165: 0.006103515625 | F165: 0.00732421875 | G165: 0.01220703125 | H165: 0.0146484375 | I165: 0.01831054688 | J165: 0.01708984375 | K165: 0.01831054688 | L165: 0.01953125 | M165: 0.01953125 | N165: 0.01953125 | O165: 0.01953125 | P165: 0.02319335938 | Q165: 0.02685546875 | R165: 0.03662109375 | S165: 0.0341796875 | T165: 0.0390625 | U165: 0.03784179688 | V165: 0.03784179688 | W165: 0.04150390625 | X165: 0.04516601562 | Y165: 0.04760742188 | Z165: 0.0537109375 | AA165: 0.05004882812 | AB165: 0.05249023438 | AC165: 0.0537109375 | AD165: 0.05615234375 | AE165: 0.05737304688 | AF165: 0.05859375
A166: 1.4 | B166: 0.1649915823 | C166: 0 | D166: 0.0048828125 | E166: 0.0048828125 | F166: 0.006103515625 | G166: 0.01220703125 | H166: 0.0146484375 | I166: 0.01708984375 | J166: 0.01831054688 | K166: 0.01831054688 | L166: 0.01953125 | M166: 0.01953125 | N166: 0.01953125 | O166: 0.01953125 | P166: 0.02197265625 | Q166: 0.02563476562 | R166: 0.03540039062 | S166: 0.03540039062 | T166: 0.0390625 | U166: 0.0390625 | V166: 0.0390625 | W166: 0.04150390625 | X166: 0.04272460938 | Y166: 0.04760742188 | Z166: 0.05249023438 | AA166: 0.05004882812 | AB166: 0.05615234375 | AC166: 0.0537109375 | AD166: 0.05615234375 | AE166: 0.05859375 | AF166: 0.05859375
A167: 1.41 | B167: 0.1661700936 | C167: 0.00244140625 | D167: 0.006103515625 | E167: 0.0048828125 | F167: 0.006103515625 | G167: 0.01342773438 | H167: 0.01586914062 | I167: 0.01586914062 | J167: 0.01953125 | K167: 0.01831054688 | L167: 0.01953125 | M167: 0.01953125 | N167: 0.01953125 | O167: 0.01953125 | P167: 0.02197265625 | Q167: 0.02685546875 | R167: 0.0390625 | S167: 0.03662109375 | T167: 0.03784179688 | U167: 0.04028320312 | V167: 0.0390625 | W167: 0.04028320312 | X167: 0.04028320312 | Y167: 0.04516601562 | Z167: 0.05126953125 | AA167: 0.05004882812 | AB167: 0.0537109375 | AC167: 0.0537109375 | AD167: 0.05737304688 | AE167: 0.05737304688 | AF167: 0.05737304688
A168: 1.42 | B168: 0.1673486049 | C168: 0.00244140625 | D168: 0.003662109375 | E168: 0.0048828125 | F168: 0.006103515625 | G168: 0.01098632812 | H168: 0.01220703125 | I168: 0.01831054688 | J168: 0.01953125 | K168: 0.01953125 | L168: 0.01953125 | M168: 0.01953125 | N168: 0.01953125 | O168: 0.02075195312 | P168: 0.02197265625 | Q168: 0.02807617188 | R168: 0.03662109375 | S168: 0.0341796875 | T168: 0.03784179688 | U168: 0.0390625 | V168: 0.0390625 | W168: 0.0390625 | X168: 0.04272460938 | Y168: 0.04638671875 | Z168: 0.05126953125 | AA168: 0.05126953125 | AB168: 0.05249023438 | AC168: 0.05737304688 | AD168: 0.05737304688 | AE168: 0.05859375 | AF168: 0.05859375
A169: 1.43 | B169: 0.1685271162 | C169: 0.00244140625 | D169: 0.006103515625 | E169: 0.0048828125 | F169: 0.00732421875 | G169: 0.01220703125 | H169: 0.01342773438 | I169: 0.01708984375 | J169: 0.01831054688 | K169: 0.01831054688 | L169: 0.01953125 | M169: 0.01953125 | N169: 0.01953125 | O169: 0.01953125 | P169: 0.02319335938 | Q169: 0.02685546875 | R169: 0.03540039062 | S169: 0.03295898438 | T169: 0.0390625 | U169: 0.0390625 | V169: 0.0390625 | W169: 0.0390625 | X169: 0.04028320312 | Y169: 0.048828125 | Z169: 0.05249023438 | AA169: 0.05004882812 | AB169: 0.05126953125 | AC169: 0.05493164062 | AD169: 0.05737304688 | AE169: 0.05737304688 | AF169: 0.05859375
A170: 1.44 | B170: 0.1697056275 | C170: 0.001220703125 | D170: 0.0048828125 | E170: 0.0048828125 | F170: 0.00732421875 | G170: 0.01098632812 | H170: 0.0146484375 | I170: 0.01708984375 | J170: 0.01831054688 | K170: 0.01953125 | L170: 0.01953125 | M170: 0.01953125 | N170: 0.01953125 | O170: 0.01953125 | P170: 0.02197265625 | Q170: 0.02563476562 | R170: 0.03662109375 | S170: 0.0341796875 | T170: 0.03662109375 | U170: 0.0390625 | V170: 0.0390625 | W170: 0.04150390625 | X170: 0.04516601562 | Y170: 0.04516601562 | Z170: 0.0537109375 | AA170: 0.04516601562 | AB170: 0.0537109375 | AC170: 0.05615234375 | AD170: 0.05737304688 | AE170: 0.05737304688 | AF170: 0.05859375
A171: 1.45 | B171: 0.1708841388 | C171: 0.00244140625 | D171: 0.0048828125 | E171: 0.006103515625 | F171: 0.00732421875 | G171: 0.009765625 | H171: 0.01586914062 | I171: 0.01586914062 | J171: 0.01708984375 | K171: 0.01831054688 | L171: 0.01953125 | M171: 0.01953125 | N171: 0.02075195312 | O171: 0.01953125 | P171: 0.02197265625 | Q171: 0.0244140625 | R171: 0.03784179688 | S171: 0.0341796875 | T171: 0.0390625 | U171: 0.0390625 | V171: 0.0390625 | W171: 0.0390625 | X171: 0.04638671875 | Y171: 0.048828125 | Z171: 0.0537109375 | AA171: 0.048828125 | AB171: 0.05493164062 | AC171: 0.05615234375 | AD171: 0.05859375 | AE171: 0.05859375 | AF171: 0.05859375
A172: 1.46 | B172: 0.1720626501 | C172: 0.00244140625 | D172: 0.003662109375 | E172: 0.003662109375 | F172: 0.008544921875 | G172: 0.01220703125 | H172: 0.01342773438 | I172: 0.01708984375 | J172: 0.01831054688 | K172: 0.01831054688 | L172: 0.01953125 | M172: 0.01953125 | N172: 0.01953125 | O172: 0.02075195312 | P172: 0.02319335938 | Q172: 0.02685546875 | R172: 0.03662109375 | S172: 0.03540039062 | T172: 0.0390625 | U172: 0.0390625 | V172: 0.0390625 | W172: 0.04150390625 | X172: 0.0439453125 | Y172: 0.04516601562 | Z172: 0.05004882812 | AA172: 0.05126953125 | AB172: 0.0537109375 | AC172: 0.05737304688 | AD172: 0.05615234375 | AE172: 0.05615234375 | AF172: 0.05859375
A173: 1.47 | B173: 0.1732411614 | C173: 0.001220703125 | D173: 0.0048828125 | E173: 0.0048828125 | F173: 0.006103515625 | G173: 0.01342773438 | H173: 0.01342773438 | I173: 0.01831054688 | J173: 0.01708984375 | K173: 0.01953125 | L173: 0.01953125 | M173: 0.01953125 | N173: 0.01953125 | O173: 0.01953125 | P173: 0.02319335938 | Q173: 0.02563476562 | R173: 0.03662109375 | S173: 0.03173828125 | T173: 0.03784179688 | U173: 0.03784179688 | V173: 0.0390625 | W173: 0.04150390625 | X173: 0.0439453125 | Y173: 0.04638671875 | Z173: 0.05126953125 | AA173: 0.05126953125 | AB173: 0.05615234375 | AC173: 0.05493164062 | AD173: 0.05859375 | AE173: 0.05737304688 | AF173: 0.05859375
A174: 1.48 | B174: 0.1744196727 | C174: 0 | D174: 0.0048828125 | E174: 0.0048828125 | F174: 0.01098632812 | G174: 0.01342773438 | H174: 0.0146484375 | I174: 0.01708984375 | J174: 0.01831054688 | K174: 0.01831054688 | L174: 0.01953125 | M174: 0.01953125 | N174: 0.01953125 | O174: 0.02075195312 | P174: 0.02197265625 | Q174: 0.02563476562 | R174: 0.03662109375 | S174: 0.03295898438 | T174: 0.0390625 | U174: 0.0390625 | V174: 0.0390625 | W174: 0.04150390625 | X174: 0.04028320312 | Y174: 0.05004882812 | Z174: 0.05249023438 | AA174: 0.04638671875 | AB174: 0.05249023438 | AC174: 0.0537109375 | AD174: 0.05737304688 | AE174: 0.05737304688 | AF174: 0.05859375
A175: 1.49 | B175: 0.175598184 | C175: 0.001220703125 | D175: 0.003662109375 | E175: 0.00244140625 | F175: 0.008544921875 | G175: 0.01220703125 | H175: 0.01586914062 | I175: 0.01586914062 | J175: 0.01831054688 | K175: 0.01831054688 | L175: 0.01953125 | M175: 0.01953125 | N175: 0.01953125 | O175: 0.01953125 | P175: 0.02197265625 | Q175: 0.02685546875 | R175: 0.03662109375 | S175: 0.03540039062 | T175: 0.03784179688 | U175: 0.0390625 | V175: 0.0390625 | W175: 0.04028320312 | X175: 0.04150390625 | Y175: 0.04760742188 | Z175: 0.05249023438 | AA175: 0.05126953125 | AB175: 0.05493164062 | AC175: 0.05493164062 | AD175: 0.05737304688 | AE175: 0.05737304688 | AF175: 0.05859375
A176: 1.5 | B176: 0.1767766953 | C176: 0.001220703125 | D176: 0.00244140625 | E176: 0.0048828125 | F176: 0.006103515625 | G176: 0.01098632812 | H176: 0.01342773438 | I176: 0.01708984375 | J176: 0.01831054688 | K176: 0.01831054688 | L176: 0.01953125 | M176: 0.01953125 | N176: 0.01953125 | O176: 0.02075195312 | P176: 0.02319335938 | Q176: 0.02563476562 | R176: 0.03784179688 | S176: 0.03173828125 | T176: 0.0390625 | U176: 0.0390625 | V176: 0.04028320312 | W176: 0.0390625 | X176: 0.04272460938 | Y176: 0.04760742188 | Z176: 0.05126953125 | AA176: 0.05004882812 | AB176: 0.05126953125 | AC176: 0.0537109375 | AD176: 0.05859375 | AE176: 0.05737304688 | AF176: 0.05859375
A177: 1.51 | B177: 0.1779552066 | C177: 0.001220703125 | D177: 0.003662109375 | E177: 0.006103515625 | F177: 0.008544921875 | G177: 0.01098632812 | H177: 0.01342773438 | I177: 0.01708984375 | J177: 0.01831054688 | K177: 0.01953125 | L177: 0.01953125 | M177: 0.01953125 | N177: 0.01953125 | O177: 0.01953125 | P177: 0.02319335938 | Q177: 0.02563476562 | R177: 0.03662109375 | S177: 0.0341796875 | T177: 0.0390625 | U177: 0.04028320312 | V177: 0.0390625 | W177: 0.0390625 | X177: 0.0439453125 | Y177: 0.04760742188 | Z177: 0.05126953125 | AA177: 0.048828125 | AB177: 0.0537109375 | AC177: 0.05249023438 | AD177: 0.05737304688 | AE177: 0.05737304688 | AF177: 0.05859375
A178: 1.52 | B178: 0.1791337179 | C178: 0.00244140625 | D178: 0.003662109375 | E178: 0.0048828125 | F178: 0.009765625 | G178: 0.01342773438 | H178: 0.01586914062 | I178: 0.01586914062 | J178: 0.01831054688 | K178: 0.01708984375 | L178: 0.01953125 | M178: 0.01953125 | N178: 0.02075195312 | O178: 0.02075195312 | P178: 0.02197265625 | Q178: 0.02197265625 | R178: 0.03662109375 | S178: 0.03662109375 | T178: 0.04028320312 | U178: 0.0390625 | V178: 0.0390625 | W178: 0.04028320312 | X178: 0.0439453125 | Y178: 0.048828125 | Z178: 0.05126953125 | AA178: 0.05004882812 | AB178: 0.05249023438 | AC178: 0.05737304688 | AD178: 0.05737304688 | AE178: 0.05859375 | AF178: 0.05859375
A179: 1.53 | B179: 0.1803122292 | C179: 0.001220703125 | D179: 0.003662109375 | E179: 0.006103515625 | F179: 0.008544921875 | G179: 0.01098632812 | H179: 0.01831054688 | I179: 0.01586914062 | J179: 0.01831054688 | K179: 0.01831054688 | L179: 0.01953125 | M179: 0.01953125 | N179: 0.01953125 | O179: 0.01953125 | P179: 0.02319335938 | Q179: 0.02319335938 | R179: 0.03662109375 | S179: 0.0341796875 | T179: 0.0390625 | U179: 0.0390625 | V179: 0.0390625 | W179: 0.04028320312 | X179: 0.0439453125 | Y179: 0.048828125 | Z179: 0.05126953125 | AA179: 0.05126953125 | AB179: 0.05493164062 | AC179: 0.05615234375 | AD179: 0.05737304688 | AE179: 0.05737304688 | AF179: 0.05859375
A180: 1.54 | B180: 0.1814907405 | C180: 0.001220703125 | D180: 0.0048828125 | E180: 0.00244140625 | F180: 0.00732421875 | G180: 0.01220703125 | H180: 0.0146484375 | I180: 0.01708984375 | J180: 0.01708984375 | K180: 0.01831054688 | L180: 0.01953125 | M180: 0.01953125 | N180: 0.01953125 | O180: 0.01953125 | P180: 0.02319335938 | Q180: 0.02685546875 | R180: 0.03784179688 | S180: 0.03540039062 | T180: 0.03784179688 | U180: 0.04028320312 | V180: 0.0390625 | W180: 0.04028320312 | X180: 0.04150390625 | Y180: 0.04760742188 | Z180: 0.05004882812 | AA180: 0.05126953125 | AB180: 0.0537109375 | AC180: 0.05493164062 | AD180: 0.05737304688 | AE180: 0.05859375 | AF180: 0.05859375
A181: 1.55 | B181: 0.1826692518 | C181: 0.001220703125 | D181: 0.0048828125 | E181: 0.00732421875 | F181: 0.006103515625 | G181: 0.0146484375 | H181: 0.01586914062 | I181: 0.01708984375 | J181: 0.01831054688 | K181: 0.01831054688 | L181: 0.01953125 | M181: 0.01953125 | N181: 0.01953125 | O181: 0.02075195312 | P181: 0.02075195312 | Q181: 0.02807617188 | R181: 0.03784179688 | S181: 0.03051757812 | T181: 0.03784179688 | U181: 0.0390625 | V181: 0.0390625 | W181: 0.04028320312 | X181: 0.04150390625 | Y181: 0.048828125 | Z181: 0.05004882812 | AA181: 0.04760742188 | AB181: 0.05493164062 | AC181: 0.0537109375 | AD181: 0.05859375 | AE181: 0.05737304688 | AF181: 0.05859375
A182: 1.56 | B182: 0.1838477631 | C182: 0.003662109375 | D182: 0.00732421875 | E182: 0.00732421875 | F182: 0.0048828125 | G182: 0.01220703125 | H182: 0.01220703125 | I182: 0.01708984375 | J182: 0.01708984375 | K182: 0.01953125 | L182: 0.01953125 | M182: 0.01953125 | N182: 0.01953125 | O182: 0.02075195312 | P182: 0.02319335938 | Q182: 0.02685546875 | R182: 0.03662109375 | S182: 0.0341796875 | T182: 0.0390625 | U182: 0.0390625 | V182: 0.0390625 | W182: 0.04028320312 | X182: 0.04272460938 | Y182: 0.04760742188 | Z182: 0.05126953125 | AA182: 0.05126953125 | AB182: 0.0537109375 | AC182: 0.05615234375 | AD182: 0.05737304688 | AE182: 0.05737304688 | AF182: 0.05859375
A183: 1.57 | B183: 0.1850262744 | C183: 0.001220703125 | D183: 0.003662109375 | E183: 0.008544921875 | F183: 0.006103515625 | G183: 0.01098632812 | H183: 0.0146484375 | I183: 0.01586914062 | J183: 0.01708984375 | K183: 0.01831054688 | L183: 0.01953125 | M183: 0.01953125 | N183: 0.01953125 | O183: 0.02075195312 | P183: 0.02197265625 | Q183: 0.02685546875 | R183: 0.0341796875 | S183: 0.0341796875 | T183: 0.0390625 | U183: 0.0390625 | V183: 0.04028320312 | W183: 0.04150390625 | X183: 0.04272460938 | Y183: 0.04516601562 | Z183: 0.05249023438 | AA183: 0.048828125 | AB183: 0.05249023438 | AC183: 0.0537109375 | AD183: 0.05737304688 | AE183: 0.05859375 | AF183: 0.05859375
A184: 1.58 | B184: 0.1862047857 | C184: 0.001220703125 | D184: 0.00244140625 | E184: 0.0048828125 | F184: 0.003662109375 | G184: 0.01220703125 | H184: 0.0146484375 | I184: 0.01708984375 | J184: 0.01586914062 | K184: 0.01953125 | L184: 0.01953125 | M184: 0.01953125 | N184: 0.01953125 | O184: 0.02075195312 | P184: 0.0244140625 | Q184: 0.02685546875 | R184: 0.03662109375 | S184: 0.03295898438 | T184: 0.0390625 | U184: 0.0390625 | V184: 0.0390625 | W184: 0.04272460938 | X184: 0.04272460938 | Y184: 0.04760742188 | Z184: 0.05249023438 | AA184: 0.048828125 | AB184: 0.0537109375 | AC184: 0.05249023438 | AD184: 0.05737304688 | AE184: 0.05615234375 | AF184: 0.05859375
A185: 1.59 | B185: 0.187383297 | C185: 0.003662109375 | D185: 0.0048828125 | E185: 0.006103515625 | F185: 0.008544921875 | G185: 0.01098632812 | H185: 0.0146484375 | I185: 0.01586914062 | J185: 0.01586914062 | K185: 0.01831054688 | L185: 0.01953125 | M185: 0.01953125 | N185: 0.01953125 | O185: 0.02075195312 | P185: 0.02319335938 | Q185: 0.02563476562 | R185: 0.03662109375 | S185: 0.03540039062 | T185: 0.0390625 | U185: 0.0390625 | V185: 0.03784179688 | W185: 0.04028320312 | X185: 0.0439453125 | Y185: 0.04516601562 | Z185: 0.05004882812 | AA185: 0.048828125 | AB185: 0.05126953125 | AC185: 0.05493164062 | AD185: 0.05615234375 | AE185: 0.05859375 | AF185: 0.05859375
A186: 1.6 | B186: 0.1885618083 | C186: 0.001220703125 | D186: 0.003662109375 | E186: 0.006103515625 | F186: 0.00732421875 | G186: 0.01098632812 | H186: 0.0146484375 | I186: 0.01708984375 | J186: 0.01586914062 | K186: 0.01831054688 | L186: 0.01953125 | M186: 0.01953125 | N186: 0.01953125 | O186: 0.02197265625 | P186: 0.02319335938 | Q186: 0.02319335938 | R186: 0.0390625 | S186: 0.03295898438 | T186: 0.03784179688 | U186: 0.0390625 | V186: 0.0390625 | W186: 0.04150390625 | X186: 0.04516601562 | Y186: 0.048828125 | Z186: 0.05249023438 | AA186: 0.05126953125 | AB186: 0.05493164062 | AC186: 0.05493164062 | AD186: 0.05859375 | AE186: 0.05859375 | AF186: 0.05859375
A187: 1.61 | B187: 0.1897403196 | C187: 0.00244140625 | D187: 0.0048828125 | E187: 0.006103515625 | F187: 0.00732421875 | G187: 0.01586914062 | H187: 0.01586914062 | I187: 0.01586914062 | J187: 0.01953125 | K187: 0.01831054688 | L187: 0.01831054688 | M187: 0.01953125 | N187: 0.01953125 | O187: 0.01953125 | P187: 0.02319335938 | Q187: 0.02563476562 | R187: 0.0341796875 | S187: 0.03295898438 | T187: 0.03784179688 | U187: 0.0390625 | V187: 0.0390625 | W187: 0.04150390625 | X187: 0.04272460938 | Y187: 0.04760742188 | Z187: 0.05004882812 | AA187: 0.048828125 | AB187: 0.05249023438 | AC187: 0.05493164062 | AD187: 0.05737304688 | AE187: 0.05615234375 | AF187: 0.05859375
A188: 1.62 | B188: 0.1909188309 | C188: 0.001220703125 | D188: 0.003662109375 | E188: 0.006103515625 | F188: 0.00732421875 | G188: 0.0146484375 | H188: 0.01220703125 | I188: 0.01586914062 | J188: 0.01831054688 | K188: 0.01953125 | L188: 0.01953125 | M188: 0.01953125 | N188: 0.01953125 | O188: 0.02075195312 | P188: 0.02197265625 | Q188: 0.02563476562 | R188: 0.03540039062 | S188: 0.03173828125 | T188: 0.03784179688 | U188: 0.0390625 | V188: 0.04028320312 | W188: 0.04028320312 | X188: 0.0439453125 | Y188: 0.048828125 | Z188: 0.05126953125 | AA188: 0.05004882812 | AB188: 0.0537109375 | AC188: 0.0537109375 | AD188: 0.05737304688 | AE188: 0.05737304688 | AF188: 0.05859375
A189: 1.63 | B189: 0.1920973422 | C189: 0.001220703125 | D189: 0.003662109375 | E189: 0.00732421875 | F189: 0.006103515625 | G189: 0.01342773438 | H189: 0.01342773438 | I189: 0.0146484375 | J189: 0.01708984375 | K189: 0.01831054688 | L189: 0.01953125 | M189: 0.01953125 | N189: 0.01953125 | O189: 0.01953125 | P189: 0.0244140625 | Q189: 0.02685546875 | R189: 0.03784179688 | S189: 0.03295898438 | T189: 0.0390625 | U189: 0.0390625 | V189: 0.0390625 | W189: 0.04150390625 | X189: 0.04150390625 | Y189: 0.04638671875 | Z189: 0.05004882812 | AA189: 0.05126953125 | AB189: 0.04638671875 | AC189: 0.05493164062 | AD189: 0.05859375 | AE189: 0.05737304688 | AF189: 0.05859375
A190: 1.64 | B190: 0.1932758535 | C190: 0.001220703125 | D190: 0.0048828125 | E190: 0.008544921875 | F190: 0.008544921875 | G190: 0.01220703125 | H190: 0.01220703125 | I190: 0.01708984375 | J190: 0.01831054688 | K190: 0.01831054688 | L190: 0.01953125 | M190: 0.01953125 | N190: 0.01953125 | O190: 0.01953125 | P190: 0.02319335938 | Q190: 0.02563476562 | R190: 0.03540039062 | S190: 0.03173828125 | T190: 0.03784179688 | U190: 0.0390625 | V190: 0.0390625 | W190: 0.04150390625 | X190: 0.0439453125 | Y190: 0.04638671875 | Z190: 0.05126953125 | AA190: 0.05004882812 | AB190: 0.05126953125 | AC190: 0.05615234375 | AD190: 0.05737304688 | AE190: 0.05859375 | AF190: 0.05737304688
A191: 1.65 | B191: 0.1944543648 | C191: 0.001220703125 | D191: 0.0048828125 | E191: 0.0048828125 | F191: 0.0048828125 | G191: 0.01220703125 | H191: 0.01586914062 | I191: 0.01586914062 | J191: 0.01708984375 | K191: 0.01831054688 | L191: 0.01953125 | M191: 0.01953125 | N191: 0.01953125 | O191: 0.01953125 | P191: 0.02319335938 | Q191: 0.0244140625 | R191: 0.0341796875 | S191: 0.03295898438 | T191: 0.0390625 | U191: 0.03784179688 | V191: 0.0390625 | W191: 0.04272460938 | X191: 0.04272460938 | Y191: 0.04638671875 | Z191: 0.0537109375 | AA191: 0.048828125 | AB191: 0.05249023438 | AC191: 0.05493164062 | AD191: 0.05737304688 | AE191: 0.05859375 | AF191: 0.05859375
A192: 1.66 | B192: 0.1956328761 | C192: 0.003662109375 | D192: 0.006103515625 | E192: 0.00732421875 | F192: 0.008544921875 | G192: 0.0146484375 | H192: 0.01220703125 | I192: 0.01831054688 | J192: 0.01831054688 | K192: 0.01831054688 | L192: 0.01953125 | M192: 0.01831054688 | N192: 0.01953125 | O192: 0.02075195312 | P192: 0.02319335938 | Q192: 0.02563476562 | R192: 0.03784179688 | S192: 0.0341796875 | T192: 0.03784179688 | U192: 0.0390625 | V192: 0.0390625 | W192: 0.04028320312 | X192: 0.0439453125 | Y192: 0.04516601562 | Z192: 0.05126953125 | AA192: 0.05126953125 | AB192: 0.05126953125 | AC192: 0.0537109375 | AD192: 0.05615234375 | AE192: 0.05737304688 | AF192: 0.05859375
A193: 1.67 | B193: 0.1968113874 | C193: 0.00244140625 | D193: 0.00244140625 | E193: 0.0048828125 | F193: 0.008544921875 | G193: 0.01098632812 | H193: 0.01342773438 | I193: 0.0146484375 | J193: 0.01708984375 | K193: 0.01953125 | L193: 0.01953125 | M193: 0.01953125 | N193: 0.01953125 | O193: 0.01953125 | P193: 0.02075195312 | Q193: 0.0244140625 | R193: 0.03662109375 | S193: 0.03295898438 | T193: 0.03662109375 | U193: 0.0390625 | V193: 0.04028320312 | W193: 0.04028320312 | X193: 0.04150390625 | Y193: 0.0439453125 | Z193: 0.05249023438 | AA193: 0.05004882812 | AB193: 0.0537109375 | AC193: 0.0537109375 | AD193: 0.05859375 | AE193: 0.05981445312 | AF193: 0.05859375
A194: 1.68 | B194: 0.1979898987 | C194: 0.001220703125 | D194: 0.00244140625 | E194: 0.006103515625 | F194: 0.00732421875 | G194: 0.01342773438 | H194: 0.01342773438 | I194: 0.01831054688 | J194: 0.01831054688 | K194: 0.01953125 | L194: 0.01953125 | M194: 0.01953125 | N194: 0.01953125 | O194: 0.02075195312 | P194: 0.02319335938 | Q194: 0.02685546875 | R194: 0.0341796875 | S194: 0.03540039062 | T194: 0.0390625 | U194: 0.04028320312 | V194: 0.0390625 | W194: 0.04028320312 | X194: 0.0439453125 | Y194: 0.04638671875 | Z194: 0.05126953125 | AA194: 0.048828125 | AB194: 0.05249023438 | AC194: 0.05615234375 | AD194: 0.05615234375 | AE194: 0.05859375 | AF194: 0.05859375
A195: 1.69 | B195: 0.19916841 | C195: 0.001220703125 | D195: 0.0048828125 | E195: 0.00732421875 | F195: 0.00732421875 | G195: 0.01342773438 | H195: 0.01586914062 | I195: 0.01708984375 | J195: 0.01953125 | K195: 0.01831054688 | L195: 0.01953125 | M195: 0.01953125 | N195: 0.01953125 | O195: 0.02075195312 | P195: 0.02197265625 | Q195: 0.02685546875 | R195: 0.03784179688 | S195: 0.0341796875 | T195: 0.03784179688 | U195: 0.0390625 | V195: 0.0390625 | W195: 0.04028320312 | X195: 0.04272460938 | Y195: 0.04760742188 | Z195: 0.05004882812 | AA195: 0.05004882812 | AB195: 0.05249023438 | AC195: 0.05615234375 | AD195: 0.05737304688 | AE195: 0.05737304688 | AF195: 0.05859375
A196: 1.7 | B196: 0.2003469213 | C196: 0.003662109375 | D196: 0.003662109375 | E196: 0.0048828125 | F196: 0.00732421875 | G196: 0.01098632812 | H196: 0.0146484375 | I196: 0.01708984375 | J196: 0.01708984375 | K196: 0.01953125 | L196: 0.01953125 | M196: 0.02075195312 | N196: 0.01953125 | O196: 0.01953125 | P196: 0.02319335938 | Q196: 0.02685546875 | R196: 0.03540039062 | S196: 0.0341796875 | T196: 0.0390625 | U196: 0.0390625 | V196: 0.0390625 | W196: 0.04150390625 | X196: 0.0439453125 | Y196: 0.04516601562 | Z196: 0.05126953125 | AA196: 0.05249023438 | AB196: 0.05249023438 | AC196: 0.0537109375 | AD196: 0.05737304688 | AE196: 0.05859375 | AF196: 0.05859375
A197: 1.71 | B197: 0.2015254326 | C197: 0 | D197: 0.00244140625 | E197: 0.00732421875 | F197: 0.006103515625 | G197: 0.01220703125 | H197: 0.01586914062 | I197: 0.01708984375 | J197: 0.01831054688 | K197: 0.01831054688 | L197: 0.01953125 | M197: 0.01953125 | N197: 0.02075195312 | O197: 0.02075195312 | P197: 0.0244140625 | Q197: 0.02319335938 | R197: 0.03540039062 | S197: 0.03051757812 | T197: 0.0390625 | U197: 0.03784179688 | V197: 0.0390625 | W197: 0.0390625 | X197: 0.04272460938 | Y197: 0.04638671875 | Z197: 0.05126953125 | AA197: 0.05004882812 | AB197: 0.05493164062 | AC197: 0.05615234375 | AD197: 0.05859375 | AE197: 0.05737304688 | AF197: 0.05859375
A198: 1.72 | B198: 0.2027039439 | C198: 0.001220703125 | D198: 0.0048828125 | E198: 0.006103515625 | F198: 0.009765625 | G198: 0.009765625 | H198: 0.01342773438 | I198: 0.01831054688 | J198: 0.01831054688 | K198: 0.01831054688 | L198: 0.01953125 | M198: 0.01953125 | N198: 0.02075195312 | O198: 0.01953125 | P198: 0.02319335938 | Q198: 0.0244140625 | R198: 0.03784179688 | S198: 0.03173828125 | T198: 0.03784179688 | U198: 0.03784179688 | V198: 0.04028320312 | W198: 0.04150390625 | X198: 0.04272460938 | Y198: 0.0439453125 | Z198: 0.0537109375 | AA198: 0.05126953125 | AB198: 0.0537109375 | AC198: 0.0537109375 | AD198: 0.05615234375 | AE198: 0.05737304688 | AF198: 0.05859375
A199: 1.73 | B199: 0.2038824552 | C199: 0.001220703125 | D199: 0.00244140625 | E199: 0.006103515625 | F199: 0.00732421875 | G199: 0.01098632812 | H199: 0.01586914062 | I199: 0.01831054688 | J199: 0.01708984375 | K199: 0.01953125 | L199: 0.01953125 | M199: 0.01953125 | N199: 0.01953125 | O199: 0.01953125 | P199: 0.02197265625 | Q199: 0.02197265625 | R199: 0.03662109375 | S199: 0.03295898438 | T199: 0.0390625 | U199: 0.0390625 | V199: 0.04028320312 | W199: 0.04150390625 | X199: 0.04150390625 | Y199: 0.0439453125 | Z199: 0.05126953125 | AA199: 0.05004882812 | AB199: 0.05249023438 | AC199: 0.05493164062 | AD199: 0.05615234375 | AE199: 0.05737304688 | AF199: 0.05859375
A200: 1.74 | B200: 0.2050609665 | C200: 0.001220703125 | D200: 0.003662109375 | E200: 0.00732421875 | F200: 0.0048828125 | G200: 0.01098632812 | H200: 0.01342773438 | I200: 0.01831054688 | J200: 0.01708984375 | K200: 0.01831054688 | L200: 0.01953125 | M200: 0.01953125 | N200: 0.01953125 | O200: 0.02075195312 | P200: 0.02197265625 | Q200: 0.02563476562 | R200: 0.03540039062 | S200: 0.0341796875 | T200: 0.03784179688 | U200: 0.0390625 | V200: 0.0390625 | W200: 0.04272460938 | X200: 0.04516601562 | Y200: 0.04638671875 | Z200: 0.05249023438 | AA200: 0.05004882812 | AB200: 0.0537109375 | AC200: 0.05493164062 | AD200: 0.05737304688 | AE200: 0.05737304688 | AF200: 0.05859375
A201: 1.75 | B201: 0.2062394778 | C201: 0.00244140625 | D201: 0.003662109375 | E201: 0.006103515625 | F201: 0.006103515625 | G201: 0.01342773438 | H201: 0.01586914062 | I201: 0.01708984375 | J201: 0.01831054688 | K201: 0.01953125 | L201: 0.01953125 | M201: 0.01953125 | N201: 0.01953125 | O201: 0.02075195312 | P201: 0.02075195312 | Q201: 0.0244140625 | R201: 0.0341796875 | S201: 0.03173828125 | T201: 0.0390625 | U201: 0.03784179688 | V201: 0.04028320312 | W201: 0.04150390625 | X201: 0.04028320312 | Y201: 0.04638671875 | Z201: 0.05126953125 | AA201: 0.05126953125 | AB201: 0.0537109375 | AC201: 0.05493164062 | AD201: 0.05859375 | AE201: 0.05737304688 | AF201: 0.05859375
A202: 1.76 | B202: 0.2074179891 | C202: 0.003662109375 | D202: 0.003662109375 | E202: 0.0048828125 | F202: 0.0048828125 | G202: 0.01220703125 | H202: 0.0146484375 | I202: 0.01708984375 | J202: 0.01953125 | K202: 0.01953125 | L202: 0.01953125 | M202: 0.01953125 | N202: 0.01953125 | O202: 0.01953125 | P202: 0.0244140625 | Q202: 0.0244140625 | R202: 0.03662109375 | S202: 0.0341796875 | T202: 0.0390625 | U202: 0.04028320312 | V202: 0.0390625 | W202: 0.04028320312 | X202: 0.04272460938 | Y202: 0.04760742188 | Z202: 0.05126953125 | AA202: 0.05249023438 | AB202: 0.05126953125 | AC202: 0.05615234375 | AD202: 0.05737304688 | AE202: 0.05737304688 | AF202: 0.05737304688
A203: 1.77 | B203: 0.2085965005 | C203: 0.001220703125 | D203: 0.003662109375 | E203: 0.006103515625 | F203: 0.00732421875 | G203: 0.0146484375 | H203: 0.01220703125 | I203: 0.01831054688 | J203: 0.01831054688 | K203: 0.01953125 | L203: 0.01953125 | M203: 0.01831054688 | N203: 0.01953125 | O203: 0.02075195312 | P203: 0.02075195312 | Q203: 0.0244140625 | R203: 0.03540039062 | S203: 0.03295898438 | T203: 0.03784179688 | U203: 0.03784179688 | V203: 0.0390625 | W203: 0.0390625 | X203: 0.04272460938 | Y203: 0.0439453125 | Z203: 0.05004882812 | AA203: 0.05249023438 | AB203: 0.0537109375 | AC203: 0.0537109375 | AD203: 0.05737304688 | AE203: 0.05859375 | AF203: 0.05859375
A204: 1.78 | B204: 0.2097750118 | C204: 0.001220703125 | D204: 0.006103515625 | E204: 0.00732421875 | F204: 0.00732421875 | G204: 0.01098632812 | H204: 0.0146484375 | I204: 0.01708984375 | J204: 0.01831054688 | K204: 0.01708984375 | L204: 0.01953125 | M204: 0.01953125 | N204: 0.01953125 | O204: 0.01953125 | P204: 0.02319335938 | Q204: 0.02685546875 | R204: 0.03662109375 | S204: 0.0341796875 | T204: 0.0390625 | U204: 0.0390625 | V204: 0.04028320312 | W204: 0.04028320312 | X204: 0.04150390625 | Y204: 0.04638671875 | Z204: 0.05004882812 | AA204: 0.05004882812 | AB204: 0.0537109375 | AC204: 0.05493164062 | AD204: 0.05737304688 | AE204: 0.05737304688 | AF204: 0.05737304688
A205: 1.79 | B205: 0.2109535231 | C205: 0.001220703125 | D205: 0.0048828125 | E205: 0.0048828125 | F205: 0.006103515625 | G205: 0.01220703125 | H205: 0.01342773438 | I205: 0.01708984375 | J205: 0.01831054688 | K205: 0.01831054688 | L205: 0.01953125 | M205: 0.01831054688 | N205: 0.01953125 | O205: 0.02075195312 | P205: 0.02319335938 | Q205: 0.02319335938 | R205: 0.03662109375 | S205: 0.0341796875 | T205: 0.0390625 | U205: 0.0390625 | V205: 0.04028320312 | W205: 0.04150390625 | X205: 0.04272460938 | Y205: 0.04760742188 | Z205: 0.05126953125 | AA205: 0.048828125 | AB205: 0.05493164062 | AC205: 0.05493164062 | AD205: 0.05615234375 | AE205: 0.05737304688 | AF205: 0.05859375
A206: 1.8 | B206: 0.2121320344 | C206: 0.001220703125 | D206: 0.001220703125 | E206: 0.008544921875 | F206: 0.0048828125 | G206: 0.01220703125 | H206: 0.01220703125 | I206: 0.01708984375 | J206: 0.01831054688 | K206: 0.01953125 | L206: 0.01953125 | M206: 0.01953125 | N206: 0.01953125 | O206: 0.02075195312 | P206: 0.02197265625 | Q206: 0.02563476562 | R206: 0.0341796875 | S206: 0.0341796875 | T206: 0.0390625 | U206: 0.03784179688 | V206: 0.04150390625 | W206: 0.0390625 | X206: 0.0439453125 | Y206: 0.04638671875 | Z206: 0.05249023438 | AA206: 0.048828125 | AB206: 0.05249023438 | AC206: 0.05493164062 | AD206: 0.05737304688 | AE206: 0.05859375 | AF206: 0.05859375
A207: 1.81 | B207: 0.2133105457 | C207: 0.001220703125 | D207: 0.003662109375 | E207: 0.006103515625 | F207: 0.00732421875 | G207: 0.01342773438 | H207: 0.01220703125 | I207: 0.01831054688 | J207: 0.01953125 | K207: 0.01831054688 | L207: 0.01831054688 | M207: 0.01953125 | N207: 0.01831054688 | O207: 0.01953125 | P207: 0.02319335938 | Q207: 0.02563476562 | R207: 0.03540039062 | S207: 0.03295898438 | T207: 0.03784179688 | U207: 0.0390625 | V207: 0.04028320312 | W207: 0.04150390625 | X207: 0.04272460938 | Y207: 0.04638671875 | Z207: 0.05249023438 | AA207: 0.05004882812 | AB207: 0.0537109375 | AC207: 0.05249023438 | AD207: 0.05615234375 | AE207: 0.05737304688 | AF207: 0.05859375
A208: 1.82 | B208: 0.214489057 | C208: 0 | D208: 0.003662109375 | E208: 0.006103515625 | F208: 0.006103515625 | G208: 0.01098632812 | H208: 0.01220703125 | I208: 0.01831054688 | J208: 0.01708984375 | K208: 0.01953125 | L208: 0.01953125 | M208: 0.01953125 | N208: 0.01831054688 | O208: 0.02197265625 | P208: 0.02197265625 | Q208: 0.02563476562 | R208: 0.03540039062 | S208: 0.03295898438 | T208: 0.03784179688 | U208: 0.0390625 | V208: 0.04028320312 | W208: 0.04272460938 | X208: 0.04028320312 | Y208: 0.048828125 | Z208: 0.05126953125 | AA208: 0.05126953125 | AB208: 0.05493164062 | AC208: 0.05615234375 | AD208: 0.05737304688 | AE208: 0.05859375 | AF208: 0.05737304688
A209: 1.83 | B209: 0.2156675683 | C209: 0.001220703125 | D209: 0.001220703125 | E209: 0.006103515625 | F209: 0.00732421875 | G209: 0.01342773438 | H209: 0.0146484375 | I209: 0.01708984375 | J209: 0.01586914062 | K209: 0.01708984375 | L209: 0.01953125 | M209: 0.01953125 | N209: 0.02075195312 | O209: 0.01953125 | P209: 0.02197265625 | Q209: 0.02563476562 | R209: 0.03662109375 | S209: 0.0341796875 | T209: 0.0390625 | U209: 0.03784179688 | V209: 0.0390625 | W209: 0.04028320312 | X209: 0.0439453125 | Y209: 0.04516601562 | Z209: 0.05249023438 | AA209: 0.05126953125 | AB209: 0.05126953125 | AC209: 0.05737304688 | AD209: 0.05859375 | AE209: 0.05737304688 | AF209: 0.05859375
A210: 1.84 | B210: 0.2168460796 | C210: 0.00244140625 | D210: 0.00244140625 | E210: 0.006103515625 | F210: 0.006103515625 | G210: 0.01342773438 | H210: 0.01342773438 | I210: 0.01586914062 | J210: 0.01831054688 | K210: 0.01831054688 | L210: 0.01953125 | M210: 0.02075195312 | N210: 0.02075195312 | O210: 0.01953125 | P210: 0.02075195312 | Q210: 0.02319335938 | R210: 0.03662109375 | S210: 0.0341796875 | T210: 0.03784179688 | U210: 0.0390625 | V210: 0.03784179688 | W210: 0.04028320312 | X210: 0.04028320312 | Y210: 0.04638671875 | Z210: 0.05126953125 | AA210: 0.05126953125 | AB210: 0.05249023438 | AC210: 0.05615234375 | AD210: 0.05615234375 | AE210: 0.05859375 | AF210: 0.05737304688
A211: 1.85 | B211: 0.2180245909 | C211: 0.001220703125 | D211: 0.003662109375 | E211: 0.009765625 | F211: 0.0048828125 | G211: 0.008544921875 | H211: 0.01586914062 | I211: 0.01953125 | J211: 0.01831054688 | K211: 0.01831054688 | L211: 0.01953125 | M211: 0.01831054688 | N211: 0.01953125 | O211: 0.01953125 | P211: 0.01953125 | Q211: 0.02563476562 | R211: 0.03784179688 | S211: 0.03173828125 | T211: 0.0390625 | U211: 0.0390625 | V211: 0.0390625 | W211: 0.04028320312 | X211: 0.04028320312 | Y211: 0.04760742188 | Z211: 0.0537109375 | AA211: 0.05126953125 | AB211: 0.05493164062 | AC211: 0.05615234375 | AD211: 0.05737304688 | AE211: 0.05859375 | AF211: 0.05859375
... 2039 more rows

Sheet Sheet1
